Workbook

Sheet ENE - JUN 2025 VS 2024
C2: IMPO + EXPO (BOXES FULL) | H2: =+(D61+F61+H61+J61)/(+D25+F25+H25+J25) -> 7.3% | J2: INDICADORES ENERO - JUNIO
C3: IMPO + EXPO (TEUs FULL) | H3: =+((D61+H61)+2*(F61+J61))/((D25+H25)+2*(F25+J25)) -> 8.4%
C4: IMPO + EXPO + TRANS + CABOT (BOXES EMPTY) | H4: =+(E61+G61+I61+K61+M61+O61+Q61+S61)/+(E25+G25+I25+K25+M25+O25+Q25+S25) -> 19.4%
C5: TRÁNSITO (BOXES) | H5: =+(L61+M61+N61+O61)/+(L25+M25+N25+O25) -> 31.3% | J5: PORCENTAJES DE VARIACIÓN 2025 VS. 2024
C6: CABOTAJE (BOXES) | H6: =+(P61+Q61+R61+S61)/(P25+Q25+R25+S25) -> -16.8%
C7: TEUs TOTALES | H7: =+U61/U25 -> 12.8%
C9: 2024 | D9: CANTIDAD CONTENEDORES ENERO - JUNIO 2024 x MES
C10: MES | D10: IMPORTACIÓN | H10: EXPORTACIÓN | L10: TRÁNSITO | P10: CABOTAJE | T10: TOTAL BOXES | U10: TOTAL TEUS
D11: 20 pies | F11: 40 pies | H11: 20 pies | J11: 40 pies | L11: 20 pies | N11: 40 pies | P11: 20 pies | R11: 40 pies
D12: full | E12: empty | F12: full | G12: empty | H12: full | I12: empty | J12: full | K12: empty | L12: full | M12: empty | N12: full | O12: empty | P12: full | Q12: empty | R12: full | S12: empty
C13: ENERO | D13: 15,499 | E13: 2,330 | F13: 44,623 | G13: 24,494 | H13: 10,459 | I13: 5,015 | J13: 60,565 | K13: 20,499 | L13: 3,685 | M13: 252 | N13: 8,036 | O13: 6,025 | P13: 701 | Q13: 251 | R13: 1,884 | S13: 5,269 | T13: =SUM(D13:S13) -> 209,587 | U13: =D13+E13+H13+I13+L13+M13+P13+Q13+(2*(F13+G13+J13+K13+N13+O13+R13+S13)) -> 380,982
C14: FEBRERO | D14: 14,125 | E14: 2,912 | F14: 41,274 | G14: 31,338 | H14: 11,792 | I14: 4,164 | J14: 57,307 | K14: 17,821 | L14: 3,083 | M14: 282 | N14: 6,012 | O14: 4,862 | P14: 758 | Q14: 279 | R14: 1,784 | S14: 5,057 | T14: =SUM(D14:S14) -> 202,850 | U14: =D14+E14+H14+I14+L14+M14+P14+Q14+(2*(F14+G14+J14+K14+N14+O14+R14+S14)) -> 368,305
C15: MARZO | D15: 16,261 | E15: 2,976 | F15: 45,107 | G15: 35,654 | H15: 12,478 | I15: 6,379 | J15: 65,822 | K15: 17,232 | L15: 3,630 | M15: 516 | N15: 8,152 | O15: 6,697 | P15: 681 | Q15: 342 | R15: 1,550 | S15: 5,084 | T15: 228,561 | U15: 413,859
C16: ABRIL | D16: 13,575 | E16: 3,239 | F16: 40,724 | G16: 22,773 | H16: 10,970 | I16: 5,963 | J16: 48,496 | K16: 18,355 | L16: 3,482 | M16: 155 | N16: 7,566 | O16: 6,403 | P16: 597 | Q16: 258 | R16: 1,609 | S16: 3,475 | T16: 187,640 | U16: 337,041
C17: MAYO | D17: 13,233 | E17: 1,928 | F17: 39,805 | G17: 22,871 | H17: 11,444 | I17: 5,338 | J17: 52,869 | K17: 17,823 | L17: 3,299 | M17: 502 | N17: 7,399 | O17: 9,924 | P17: 505 | Q17: 523 | R17: 1,498 | S17: 3,919 | T17: 192,880 | U17: 348,988
C18: JUNIO | D18: 13,169 | E18: 4,151 | F18: 43,277 | G18: 19,437 | H18: 11,293 | I18: 4,781 | J18: 53,710 | K18: 14,707 | L18: 2,819 | M18: 541 | N18: 8,492 | O18: 7,193 | P18: 391 | Q18: 194 | R18: 1,290 | S18: 2,338 | T18: =SUM(D18:S18) -> 187,783 | U18: 338,227
C19: JULIO | T19: 0 | U19: 0
C20: AGOSTO | T20: 0 | U20: 0
C21: SEPTIEMBRE | T21: 0 | U21: 0
C22: OCTUBRE | T22: 0 | U22: 0
C23: NOVIEMBRE | T23: 0 | U23: 0
C24: DICIEMBRE | T24: 0 | U24: 0
C25: TOTAL | D25: =SUM(D13:D24) -> 85,862 | E25: =SUM(E13:E24) -> 17,536 | F25: 254,810 | G25: 156,567 | H25: 68,436 | I25: 31,640 | J25: =SUM(J13:J24) -> 338,769 | K25: 106,437 | L25: 19,998 | M25: 2,248 | N25: 45,657 | O25: 41,104 | P25: 3,633 | Q25: 1,847 | R25: 9,615 | S25: 25,142 | T25: =SUM(T13:T24) -> 1,209,301 | U25: 2,187,402
C27: 2025 | D27: CANTIDAD CONTENEDORES ENERO - JUNIO 2025 x MES
C28: MES | D28: IMPORTACIÓN | H28: EXPORTACIÓN | L28: TRÁNSITO | P28: CABOTAJE | T28: TOTAL BOXES | U28: TOTAL TEUS
D29: 20 pies | F29: 40 pies | H29: 20 pies | J29: 40 pies | L29: 20 pies | N29: 40 pies | P29: 20 pies | R29: 40 pies
D30: full | E30: empty | F30: full | G30: empty | H30: full | I30: empty | J30: full | K30: empty | L30: full | M30: empty | N30: full | O30: empty | P30: full | Q30: empty | R30: full | S30: empty
C31: ENERO | D31: 14,531 | E31: 1,537 | F31: 53,393 | G31: 32,176 | H31: 10,427 | I31: 3,448 | J31: 62,299 | K31: 25,300 | L31: 4,382 | M31: 591 | N31: 10,634 | O31: 8,043 | P31: 439 | Q31: 431 | R31: 1,439 | S31: 3,389 | T31: =SUM(D31:S31) -> 232,459 | U31: =D31+E31+H31+I31+L31+M31+P31+Q31+(2*(F31+G31+J31+K31+N31+O31+R31+S31)) -> 429,132
C32: FEBRERO | D32: 13,321 | E32: 3,016 | F32: 45,975 | G32: 26,277 | H32: 10,246 | I32: 3,885 | J32: 51,932 | K32: 23,196 | L32: 3,542 | M32: 997 | N32: 9,066 | O32: 11,515 | P32: 634 | Q32: 205 | R32: 1,318 | S32: 4,184 | T32: =SUM(D32:S32) -> 209,309 | U32: =D32+E32+H32+I32+L32+M32+P32+Q32+(2*(F32+G32+J32+K32+N32+O32+R32+S32)) -> 382,772
C33: MARZO | D33: 14,556 | E33: 2,302 | F33: 52,096 | G33: 29,780 | H33: 10,588 | I33: 6,050 | J33: 66,970 | K33: 32,202 | L33: 3,887 | M33: 673 | N33: 9,051 | O33: 11,614 | P33: 470 | Q33: 125 | R33: 1,337 | S33: 2,269 | T33: 243,970 | U33: 449,289
C34: ABRIL | D34: 14,540 | E34: 2,150 | F34: 48,533 | G34: 30,889 | H34: 11,320 | I34: 4,470 | J34: 57,957 | K34: 26,938 | L34: 3,088 | M34: 516 | N34: 6,941 | O34: 11,947 | P34: 442 | Q34: 86 | R34: 1,154 | S34: 5,378 | T34: 226,349 | U34: 416,086
C35: MAYO | D35: 13,604 | E35: 2,828 | F35: 49,412 | G35: 20,693 | H35: 11,513 | I35: 6,296 | J35: 53,809 | K35: 30,503 | L35: 4,187 | M35: 506 | N35: 8,719 | O35: 10,239 | P35: 613 | Q35: 290 | R35: 1,312 | S35: 2,533 | T35: 217,057 | U35: 394,277
C36: JUNIO | D36: 14,905 | E36: 2,520 | F36: 52,574 | G36: 18,504 | H36: 11,789 | I36: 4,135 | J36: 56,348 | K36: 28,090 | L36: 3,976 | M36: 277 | N36: 8,828 | O36: 9,957 | P36: 491 | Q36: 201 | R36: 1,261 | S36: 3,467 | T36: =SUM(D36:S36) -> 217,323 | U36: 396,352
C37: JULIO | T37: 0 | U37: 0
C38: AGOSTO | T38: 0 | U38: 0
C39: SEPTIEMBRE | T39: 0 | U39: 0
C40: OCTUBRE | T40: 0 | U40: 0
C41: NOVIEMBRE | T41: 0 | U41: 0
C42: DICIEMBRE | T42: 0 | U42: 0
C43: TOTAL | D43: =SUM(D31:D42) -> 85,457 | E43: =SUM(E31:E42) -> 14,353 | F43: 301,983 | G43: 158,319 | H43: 65,883 | I43: 28,284 | J43: 349,315 | K43: 166,229 | L43: 23,062 | M43: 3,560 | N43: 53,239 | O43: 63,315 | P43: 3,089 | Q43: 1,338 | R43: 7,821 | S43: 21,220 | T43: 1,346,467 | U43: 2,467,908
C45: DIFERENCIA ENERO - JUNIO 2025 vs 2024 (UNIDADES)
C46: MES | D46: IMPORTACIÓN | H46: EXPORTACIÓN | L46: TRÁNSITO | P46: CABOTAJE | T46: TOTAL BOXES | U46: TOTAL TEUS
D47: 20 pies | F47: 40 pies | H47: 20 pies | J47: 40 pies | L47: 20 pies | N47: 40 pies | P47: 20 pies | R47: 40 pies
D48: full | E48: empty | F48: full | G48: empty | H48: full | I48: empty | J48: full | K48: empty | L48: full | M48: empty | N48: full | O48: empty | P48: full | Q48: empty | R48: full | S48: empty
C49: ENERO | D49: =D31-D13 -> -968 | E49: =E31-E13 -> -793 | F49: 8,770 | G49: 7,682 | H49: -32 | I49: -1,567 | J49: 1,734 | K49: 4,801 | L49: 697 | M49: 339 | N49: 2,598 | O49: 2,018 | P49: -262 | Q49: 180 | R49: -445 | S49: -1,880 | T49: 22,872 | U49: 48,150
C50: FEBRERO | D50: =D32-D14 -> -804 | E50: 104 | F50: 4,701 | G50: -5,061 | H50: -1,546 | I50: -279 | J50: -5,375 | K50: 5,375 | L50: 459 | M50: 715 | N50: 3,054 | O50: 6,653 | P50: -124 | Q50: -74 | R50: -466 | S50: -873 | T50: 6,459 | U50: 14,467
C51: MARZO | D51: -1,705 | E51: -674 | F51: 6,989 | G51: -5,874 | H51: -1,890 | I51: -329 | J51: 1,148 | K51: 14,970 | L51: 257 | M51: 157 | N51: 899 | O51: 4,917 | P51: -211 | Q51: -217 | R51: -213 | S51: -2,815 | T51: 15,409 | U51: 35,430
C52: ABRIL | D52: =D34-D16 -> 965 | E52: -1,089 | F52: 7,809 | G52: 8,116 | H52: 350 | I52: -1,493 | J52: 9,461 | K52: 8,583 | L52: -394 | M52: 361 | N52: -625 | O52: 5,544 | P52: -155 | Q52: -172 | R52: -455 | S52: 1,903 | T52: 38,709 | U52: 79,045
C53: MAYO | D53: =D35-D17 -> 371 | E53: 900 | F53: 9,607 | G53: -2,178 | H53: 69 | I53: 958 | J53: 940 | K53: 12,680 | L53: 888 | M53: 4 | N53: 1,320 | O53: 315 | P53: 108 | Q53: -233 | R53: -186 | S53: -1,386 | T53: 24,177 | U53: 45,289
C54: JUNIO | D54: =D36-D18 -> 1,736 | E54: -1,631 | F54: 9,297 | G54: -933 | H54: 496 | I54: -646 | J54: 2,638 | K54: 13,383 | L54: 1,157 | M54: -264 | N54: 336 | O54: 2,764 | P54: 100 | Q54: 7 | R54: -29 | S54: 1,129 | T54: 29,540 | U54: 58,125
C55: JULIO | T55: 0 | U55: 0
C56: AGOSTO | T56: 0 | U56: 0
C57: SEPTIEMBRE | T57: 0 | U57: 0
C58: OCTUBRE | T58: 0 | U58: 0
C59: NOVIEMBRE | T59: 0 | U59: 0
C60: DICIEMBRE | T60: 0 | U60: 0
C61: TOTAL | D61: -405 | E61: -3,183 | F61: 47,173 | G61: 1,752 | H61: -2,553 | I61: -3,356 | J61: 10,546 | K61: 59,792 | L61: 3,064 | M61: 1,312 | N61: 7,582 | O61: 22,211 | P61: -544 | Q61: -509 | R61: -1,794 | S61: -3,922 | T61: 137,166 | U61: 280,506
C63: DIFERENCIA ENERO - JUNIO 2025 vs 2024 (PORCENTAJES)
C64: MES | D64: IMPORTACIÓN | H64: EXPORTACIÓN | L64: TRÁNSITO | P64: CABOTAJE | T64: TOTAL BOXES | U64: TOTAL TEUS
D65: 20 pies | F65: 40 pies | H65: 20 pies | J65: 40 pies | L65: 20 pies | N65: 40 pies | P65: 20 pies | R65: 40 pies
D66: full | E66: empty | F66: full | G66: empty | H66: full | I66: empty | J66: full | K66: empty | L66: full | M66: empty | N66: full | O66: empty | P66: full | Q66: empty | R66: full | S66: empty
C67: ENERO | D67: =D31/D13-1 -> -6.2% | E67: =E31/E13-1 -> -34.0% | F67: 19.7% | G67: 31.4% | H67: -0.3% | I67: -31.2% | J67: 2.9% | K67: 23.4% | L67: 18.9% | M67: 134.5% | N67: 32.3% | O67: 33.5% | P67: -37.4% | Q67: 71.7% | R67: -23.6% | S67: -35.7% | T67: 10.9% | U67: 12.6%
C68: FEBRERO | D68: =D32/D14-1 -> -5.7% | E68: 3.6% | F68: 11.4% | G68: -16.1% | H68: -13.1% | I68: -6.7% | J68: -9.4% | K68: 30.2% | L68: 14.9% | M68: 253.5% | N68: 50.8% | O68: 136.8% | P68: -16.4% | Q68: -26.5% | R68: -26.1% | S68: -17.3% | T68: 3.2% | U68: 3.9%
C69: MARZO | D69: -10.5% | E69: -22.6% | F69: 15.5% | G69: -16.5% | H69: -15.1% | I69: -5.2% | J69: 1.7% | K69: 86.9% | L69: 7.1% | M69: 30.4% | N69: 11.0% | O69: 73.4% | P69: -31.0% | Q69: -63.5% | R69: -13.7% | S69: -55.4% | T69: 6.7% | U69: 8.6%
C70: ABRIL | D70: =D34/D16-1 -> 7.1% | E70: -33.6% | F70: 19.2% | G70: 35.6% | H70: 3.2% | I70: -25.0% | J70: 19.5% | K70: 46.8% | L70: -11.3% | M70: 232.9% | N70: -8.3% | O70: 86.6% | P70: -26.0% | Q70: -66.7% | R70: -28.3% | S70: 54.8% | T70: 20.6% | U70: 23.5%
C71: MAYO | D71: =D35/D17-1 -> 2.8% | E71: 46.7% | F71: 24.1% | G71: -9.5% | H71: 0.6% | I71: 17.9% | J71: 1.8% | K71: 71.1% | L71: 26.9% | M71: 0.8% | N71: 17.8% | O71: 3.2% | P71: 21.4% | Q71: -44.6% | R71: -12.4% | S71: -35.4% | T71: 12.5% | U71: 13.0%
C72: JUNIO | D72: =D36/D18-1 -> 13.2% | E72: -39.3% | F72: 21.5% | G72: -4.8% | H72: 4.4% | I72: -13.5% | J72: 4.9% | K72: 91.0% | L72: 41.0% | M72: -48.8% | N72: 4.0% | O72: 38.4% | P72: 25.6% | Q72: 3.6% | R72: -2.2% | S72: 48.3% | T72: 15.7% | U72: 17.2%
C73: JULIO
C74: AGOSTO
C75: SEPTIEMBRE
C76: OCTUBRE
C77: NOVIEMBRE
C78: DICIEMBRE
C79: TOTAL | D79: =+D61/D25 -> -0.5% | E79: -18.2% | F79: 18.5% | G79: 1.1% | H79: -3.7% | I79: -10.6% | J79: 3.1% | K79: 56.2% | L79: 15.3% | M79: 58.4% | N79: 16.6% | O79: 54.0% | P79: -15.0% | Q79: -27.6% | R79: -18.7% | S79: -15.6% | T79: 11.3% | U79: 12.8%

Sheet 2024 VS 2023
C1: IMPO + EXPO (BOXES FULL) | H1: =+(D60+F60+H60+J60)/(+D24+F24+H24+J24) -> 10.9% | J1: INDICADORES ENERO - DICIEMBRE
C2: IMPO + EXPO (TEUs FULL) | H2: =+((D60+H60)+2*(F60+J60))/((D24+H24)+2*(F24+J24)) -> 12.2%
C3: IMPO + EXPO + TRANS + CABOT (BOXES EMPTY) | H3: =+(E60+G60+I60+K60+M60+O60+Q60+S60)/+(E24+G24+I24+K24+M24+O24+Q24+S24) -> 0.9%
C4: TRÁNSITO (BOXES) | H4: =+(L60+M60+N60+O60)/+(L24+M24+N24+O24) -> 15.6% | J4: PORCENTAJES DE VARIACIÓN 2024 VS. 2023
C5: CABOTAJE (BOXES) | H5: =+(P60+Q60+R60+S60)/(P24+Q24+R24+S24) -> 0.7%
C6: TEUs TOTALES | H6: =+U60/U24 -> 7.0%
C8: 2023 | D8: CANTIDAD CONTENEDORES ENERO - DICIEMBRE 2023 x MES
C9: MES | D9: IMPORTACIÓN | H9: EXPORTACIÓN | L9: TRÁNSITO | P9: CABOTAJE | T9: TOTAL BOXES | U9: TOTAL TEUS
D10: 20 pies | F10: 40 pies | H10: 20 pies | J10: 40 pies | L10: 20 pies | N10: 40 pies | P10: 20 pies | R10: 40 pies
D11: full | E11: empty | F11: full | G11: empty | H11: full | I11: empty | J11: full | K11: empty | L11: full | M11: empty | N11: full | O11: empty | P11: full | Q11: empty | R11: full | S11: empty
C12: ENERO | D12: 10,907 | E12: 4,915 | F12: 34,904 | G12: 18,745 | H12: 9,070 | I12: 3,401 | J12: 41,017 | K12: 19,731 | L12: 2,778 | M12: 532 | N12: 7,090 | O12: 6,866 | P12: 600 | Q12: 236 | R12: 1,552 | S12: 2,401 | T12: =SUM(D12:S12) -> 164,745 | U12: =D12+E12+H12+I12+L12+M12+P12+Q12+(2*(F12+G12+J12+K12+N12+O12+R12+S12)) -> 297,051
C13: FEBRERO | D13: 12,876 | E13: 3,813 | F13: 35,249 | G13: 20,751 | H13: 11,155 | I13: 5,821 | J13: 50,680 | K13: 22,656 | L13: 3,974 | M13: 390 | N13: 7,790 | O13: 3,624 | P13: 1,011 | Q13: 182 | R13: 2,039 | S13: 2,007 | T13: =SUM(D13:S13) -> 184,018 | U13: =D13+E13+H13+I13+L13+M13+P13+Q13+(2*(F13+G13+J13+K13+N13+O13+R13+S13)) -> 328,814
C14: MARZO | D14: 11,971 | E14: 2,885 | F14: 33,394 | G14: 28,656 | H14: 10,873 | I14: 7,489 | J14: 53,139 | K14: 16,332 | L14: 4,148 | M14: 400 | N14: 8,787 | O14: 2,644 | P14: 474 | Q14: 167 | R14: 1,519 | S14: 2,460 | T14: 185,338 | U14: 332,269
C15: ABRIL | D15: 13,016 | E15: 2,619 | F15: 36,012 | G15: 20,569 | H15: 11,581 | I15: 4,117 | J15: 47,812 | K15: 13,422 | L15: 3,114 | M15: 273 | N15: 7,760 | O15: 5,390 | P15: 817 | Q15: 228 | R15: 2,462 | S15: 2,743 | T15: 171,935 | U15: 308,105
C16: MAYO | D16: 15,026 | E16: 4,236 | F16: 42,673 | G16: 21,421 | H16: 12,128 | I16: 4,168 | J16: 51,979 | K16: 18,006 | L16: 3,751 | M16: 593 | N16: 8,133 | O16: 4,712 | P16: 944 | Q16: 424 | R16: 2,114 | S16: 4,330 | T16: 194,638 | U16: 348,006
C17: JUNIO | D17: 13,625 | E17: 4,284 | F17: 40,632 | G17: 33,633 | H17: 12,413 | I17: 5,298 | J17: 49,420 | K17: 25,368 | L17: 3,320 | M17: 357 | N17: 8,277 | O17: 3,810 | P17: 772 | Q17: 243 | R17: 1,910 | S17: 5,145 | T17: =SUM(D17:S17) -> 208,507 | U17: 376,702
C18: JULIO | D18: 14,389 | E18: 3,193 | F18: 36,782 | G18: 37,702 | H18: 11,449 | I18: 6,164 | J18: 53,223 | K18: 18,596 | L18: 4,067 | M18: 604 | N18: 8,532 | O18: 6,136 | P18: 419 | Q18: 235 | R18: 1,442 | S18: 5,906 | T18: 208,839 | U18: 377,158
C19: AGOSTO | D19: 17,430 | E19: 2,911 | F19: 47,530 | G19: 32,061 | H19: 12,586 | I19: 5,684 | J19: 54,066 | K19: 24,434 | L19: 4,100 | M19: 737 | N19: 7,959 | O19: 5,413 | P19: 701 | Q19: 254 | R19: 2,150 | S19: 4,576 | T19: 222,592 | U19: 400,781
C20: SEPTIEMBRE | D20: 15,264 | E20: 3,259 | F20: 45,410 | G20: 31,674 | H20: 11,529 | I20: 5,939 | J20: 53,354 | K20: 21,107 | L20: 4,173 | M20: 554 | N20: 7,374 | O20: 3,246 | P20: 692 | Q20: 581 | R20: 2,135 | S20: 4,545 | T20: 210,836 | U20: 379,681
C21: OCTUBRE | D21: 14,172 | E21: 2,826 | F21: 42,461 | G21: 28,325 | H21: 12,221 | I21: 5,403 | J21: 44,926 | K21: 20,557 | L21: 4,010 | M21: 849 | N21: 8,875 | O21: 4,984 | P21: 432 | Q21: 524 | R21: 1,410 | S21: 6,772 | T21: 198,747 | U21: 357,057
C22: NOVIEMBRE | D22: 14,195 | E22: 3,870 | F22: 41,902 | G22: 29,038 | H22: 12,344 | I22: 8,000 | J22: 51,306 | K22: 25,298 | L22: 3,861 | M22: 484 | N22: 8,529 | O22: 5,330 | P22: 578 | Q22: 754 | R22: 1,836 | S22: 5,008 | T22: 212,333 | U22: 380,580
C23: DICIEMBRE | D23: 13,919 | E23: 2,421 | F23: 42,021 | G23: 20,751 | H23: 12,630 | I23: 4,572 | J23: 60,532 | K23: 23,195 | L23: 3,661 | M23: 245 | N23: 7,900 | O23: 3,529 | P23: 609 | Q23: 157 | R23: 1,628 | S23: 1,708 | T23: 199,478 | U23: 360,742
C24: TOTAL | D24: =SUM(D12:D23) -> 166,790 | E24: =SUM(E12:E23) -> 41,232 | F24: 478,970 | G24: 323,326 | H24: 139,979 | I24: 66,056 | J24: =SUM(J12:J23) -> 611,454 | K24: 248,702 | L24: 44,957 | M24: 6,018 | N24: 97,006 | O24: 55,684 | P24: 8,049 | Q24: 3,985 | R24: 22,197 | S24: 47,601 | T24: =SUM(T12:T23) -> 2,362,006 | U24: 4,246,946
C26: 2024 | D26: CANTIDAD CONTENEDORES ENERO - DICIEMBRE 2024 x MES
C27: MES | D27: IMPORTACIÓN | H27: EXPORTACIÓN | L27: TRÁNSITO | P27: CABOTAJE | T27: TOTAL BOXES | U27: TOTAL TEUS
D28: 20 pies | F28: 40 pies | H28: 20 pies | J28: 40 pies | L28: 20 pies | N28: 40 pies | P28: 20 pies | R28: 40 pies
D29: full | E29: empty | F29: full | G29: empty | H29: full | I29: empty | J29: full | K29: empty | L29: full | M29: empty | N29: full | O29: empty | P29: full | Q29: empty | R29: full | S29: empty
C30: ENERO | D30: 15,499 | E30: 2,330 | F30: 44,623 | G30: 24,494 | H30: 10,459 | I30: 5,015 | J30: 60,565 | K30: 20,499 | L30: 3,685 | M30: 252 | N30: 8,036 | O30: 6,025 | P30: 701 | Q30: 251 | R30: 1,884 | S30: 5,269 | T30: =SUM(D30:S30) -> 209,587 | U30: =D30+E30+H30+I30+L30+M30+P30+Q30+(2*(F30+G30+J30+K30+N30+O30+R30+S30)) -> 380,982
C31: FEBRERO | D31: 14,125 | E31: 2,912 | F31: 41,274 | G31: 31,338 | H31: 11,792 | I31: 4,164 | J31: 57,307 | K31: 17,821 | L31: 3,083 | M31: 282 | N31: 6,012 | O31: 4,862 | P31: 758 | Q31: 279 | R31: 1,784 | S31: 5,057 | T31: =SUM(D31:S31) -> 202,850 | U31: =D31+E31+H31+I31+L31+M31+P31+Q31+(2*(F31+G31+J31+K31+N31+O31+R31+S31)) -> 368,305
C32: MARZO | D32: 16,261 | E32: 2,976 | F32: 45,107 | G32: 35,654 | H32: 12,478 | I32: 6,379 | J32: 65,822 | K32: 17,232 | L32: 3,630 | M32: 516 | N32: 8,152 | O32: 6,697 | P32: 681 | Q32: 342 | R32: 1,550 | S32: 5,084 | T32: 228,561 | U32: 413,859
C33: ABRIL | D33: 13,575 | E33: 3,239 | F33: 40,724 | G33: 22,773 | H33: 10,970 | I33: 5,963 | J33: 48,496 | K33: 18,355 | L33: 3,482 | M33: 155 | N33: 7,566 | O33: 6,403 | P33: 597 | Q33: 258 | R33: 1,609 | S33: 3,475 | T33: 187,640 | U33: 337,041
C34: MAYO | D34: 13,233 | E34: 1,928 | F34: 39,805 | G34: 22,871 | H34: 11,444 | I34: 5,338 | J34: 52,869 | K34: 17,823 | L34: 3,299 | M34: 502 | N34: 7,399 | O34: 9,924 | P34: 505 | Q34: 523 | R34: 1,498 | S34: 3,919 | T34: 192,880 | U34: 348,988
C35: JUNIO | D35: 13,169 | E35: 4,151 | F35: 43,277 | G35: 19,437 | H35: 11,293 | I35: 4,781 | J35: 53,710 | K35: 14,707 | L35: 2,819 | M35: 541 | N35: 8,492 | O35: 7,193 | P35: 391 | Q35: 194 | R35: 1,290 | S35: 2,338 | T35: =SUM(D35:S35) -> 187,783 | U35: 338,227
C36: JULIO | D36: 14,539 | E36: 2,274 | F36: 61,548 | G36: 30,706 | H36: 11,931 | I36: 5,640 | J36: 66,064 | K36: 23,974 | L36: 3,819 | M36: 614 | N36: 9,237 | O36: 8,705 | P36: 424 | Q36: 265 | R36: 1,309 | S36: 3,961 | T36: 245,010 | U36: 450,514
C37: AGOSTO | D37: 12,785 | E37: 1,335 | F37: 56,221 | G37: 28,007 | H37: 11,606 | I37: 2,611 | J37: 60,861 | K37: 15,352 | L37: 2,484 | M37: 384 | N37: 7,122 | O37: 5,539 | P37: 382 | Q37: 168 | R37: 1,338 | S37: 5,045 | T37: 211,240 | U37: 390,725
C38: SEPTIEMBRE | D38: 11,555 | E38: 3,511 | F38: 52,579 | G38: 23,953 | H38: 11,174 | I38: 2,731 | J38: 52,296 | K38: 16,001 | L38: 3,740 | M38: 364 | N38: 8,886 | O38: 6,968 | P38: 332 | Q38: 302 | R38: 1,294 | S38: 3,332 | T38: 199,018 | U38: 364,327
C39: OCTUBRE | D39: 12,437 | E39: 4,534 | F39: 42,383 | G39: 26,974 | H39: 11,614 | I39: 10,137 | J39: 42,474 | K39: 16,765 | L39: 2,992 | M39: 798 | N39: 8,529 | O39: 10,306 | P39: 436 | Q39: 812 | R39: 1,390 | S39: 6,728 | T39: 199,309 | U39: 354,858
C40: NOVIEMBRE | D40: 15,622 | E40: 5,091 | F40: 51,414 | G40: 28,567 | H40: 12,932 | I40: 11,609 | J40: 49,916 | K40: 14,909 | L40: 3,656 | M40: 344 | N40: 8,527 | O40: 10,297 | P40: 372 | Q40: 328 | R40: 1,205 | S40: 6,818 | T40: 221,607 | U40: 393,260
C41: DICIEMBRE | D41: 14,351 | E41: 4,392 | F41: 49,591 | G41: 26,940 | H41: 12,849 | I41: 9,641 | J41: 62,800 | K41: 15,199 | L41: 3,219 | M41: 220 | N41: 9,581 | O41: 10,009 | P41: 430 | Q41: 181 | R41: 1,403 | S41: 3,889 | T41: 224,695 | U41: 404,107
C42: TOTAL | D42: =SUM(D30:D41) -> 167,151 | E42: =SUM(E30:E41) -> 38,673 | F42: 568,546 | G42: 321,714 | H42: 140,542 | I42: 74,009 | J42: 673,180 | K42: 208,637 | L42: 39,908 | M42: 4,972 | N42: 97,539 | O42: 92,928 | P42: 6,009 | Q42: 3,903 | R42: 17,554 | S42: 54,915 | T42: 2,510,180 | U42: 4,545,193
C44: DIFERENCIA ENERO - DICIEMBRE 2024 vs 2023 (UNIDADES)
C45: MES | D45: IMPORTACIÓN | H45: EXPORTACIÓN | L45: TRÁNSITO | P45: CABOTAJE | T45: TOTAL BOXES | U45: TOTAL TEUS
D46: 20 pies | F46: 40 pies | H46: 20 pies | J46: 40 pies | L46: 20 pies | N46: 40 pies | P46: 20 pies | R46: 40 pies
D47: full | E47: empty | F47: full | G47: empty | H47: full | I47: empty | J47: full | K47: empty | L47: full | M47: empty | N47: full | O47: empty | P47: full | Q47: empty | R47: full | S47: empty
C48: ENERO | D48: =D30-D12 -> 4,592 | E48: =E30-E12 -> -2,585 | F48: 9,719 | G48: 5,749 | H48: 1,389 | I48: 1,614 | J48: 19,548 | K48: 768 | L48: 907 | M48: -280 | N48: 946 | O48: -841 | P48: 101 | Q48: 15 | R48: 332 | S48: 2,868 | T48: 44,842 | U48: 83,931
C49: FEBRERO | D49: =D31-D13 -> 1,249 | E49: -901 | F49: 6,025 | G49: 10,587 | H49: 637 | I49: -1,657 | J49: 6,627 | K49: -4,835 | L49: -891 | M49: -108 | N49: -1,778 | O49: 1,238 | P49: -253 | Q49: 97 | R49: -255 | S49: 3,050 | T49: 18,832 | U49: 39,491
C50: MARZO | D50: 4,290 | E50: 91 | F50: 11,713 | G50: 6,998 | H50: 1,605 | I50: -1,110 | J50: 12,683 | K50: 900 | L50: -518 | M50: 116 | N50: -635 | O50: 4,053 | P50: 207 | Q50: 175 | R50: 31 | S50: 2,624 | T50: 43,223 | U50: 81,590
C51: ABRIL | D51: 559 | E51: 620 | F51: 4,712 | G51: 2,204 | H51: -611 | I51: 1,846 | J51: 684 | K51: 4,933 | L51: 368 | M51: -118 | N51: -194 | O51: 1,013 | P51: -220 | Q51: 30 | R51: -853 | S51: 732 | T51: 15,705 | U51: 28,936
C52: MAYO | D52: -1,793 | E52: -2,308 | F52: -2,868 | G52: 1,450 | H52: -684 | I52: 1,170 | J52: 890 | K52: -183 | L52: -452 | M52: -91 | N52: -734 | O52: 5,212 | P52: -439 | Q52: 99 | R52: -616 | S52: -411 | T52: -1,758 | U52: 982
C53: JUNIO | D53: -456 | E53: -133 | F53: 2,645 | G53: -14,196 | H53: -1,120 | I53: -517 | J53: 4,290 | K53: -10,661 | L53: -501 | M53: 184 | N53: 215 | O53: 3,383 | P53: -381 | Q53: -49 | R53: -620 | S53: -2,807 | T53: -20,724 | U53: -38,475
C54: JULIO | D54: 150 | E54: -919 | F54: 24,766 | G54: -6,996 | H54: 482 | I54: -524 | J54: 12,841 | K54: 5,378 | L54: -248 | M54: 10 | N54: 705 | O54: 2,569 | P54: 5 | Q54: 30 | R54: -133 | S54: -1,945 | T54: 36,171 | U54: 73,356
C55: AGOSTO | D55: -4,645 | E55: -1,576 | F55: 8,691 | G55: -4,054 | H55: -980 | I55: -3,073 | J55: 6,795 | K55: -9,082 | L55: -1,616 | M55: -353 | N55: -837 | O55: 126 | P55: -319 | Q55: -86 | R55: -812 | S55: 469 | T55: -11,352 | U55: -10,056
C56: SEPTIEMBRE | D56: -3,709 | E56: 252 | F56: 7,169 | G56: -7,721 | H56: -355 | I56: -3,208 | J56: -1,058 | K56: -5,106 | L56: -433 | M56: -190 | N56: 1,512 | O56: 3,722 | P56: -360 | Q56: -279 | R56: -841 | S56: -1,213 | T56: -11,818 | U56: -15,354
C57: OCTUBRE | D57: -1,735 | E57: 1,708 | F57: -78 | G57: -1,351 | H57: -607 | I57: 4,734 | J57: -2,452 | K57: -3,792 | L57: -1,018 | M57: -51 | N57: -346 | O57: 5,322 | P57: 4 | Q57: 288 | R57: -20 | S57: -44 | T57: 562 | U57: -2,199
C58: NOVIEMBRE | D58: 1,427 | E58: 1,221 | F58: 9,512 | G58: -471 | H58: 588 | I58: 3,609 | J58: -1,390 | K58: -10,389 | L58: -205 | M58: -140 | N58: -2 | O58: 4,967 | P58: -206 | Q58: -426 | R58: -631 | S58: 1,810 | T58: 9,274 | U58: 12,680
C59: DICIEMBRE | D59: 432 | E59: 1,971 | F59: 7,570 | G59: 6,189 | H59: 219 | I59: 5,069 | J59: 2,268 | K59: -7,996 | L59: -442 | M59: -25 | N59: 1,681 | O59: 6,480 | P59: -179 | Q59: 24 | R59: -225 | S59: 2,181 | T59: 25,217 | U59: 43,365
C60: TOTAL | D60: 361 | E60: -2,559 | F60: 89,576 | G60: -1,612 | H60: 563 | I60: 7,953 | J60: 61,726 | K60: -40,065 | L60: -5,049 | M60: -1,046 | N60: 533 | O60: 37,244 | P60: -2,040 | Q60: -82 | R60: -4,643 | S60: 7,314 | T60: 148,174 | U60: 298,247
C62: DIFERENCIA ENERO - DICIEMBRE 2024 vs 2023 (PORCENTAJES)
C63: MES | D63: IMPORTACIÓN | H63: EXPORTACIÓN | L63: TRÁNSITO | P63: CABOTAJE | T63: TOTAL BOXES | U63: TOTAL TEUS
D64: 20 pies | F64: 40 pies | H64: 20 pies | J64: 40 pies | L64: 20 pies | N64: 40 pies | P64: 20 pies | R64: 40 pies
D65: full | E65: empty | F65: full | G65: empty | H65: full | I65: empty | J65: full | K65: empty | L65: full | M65: empty | N65: full | O65: empty | P65: full | Q65: empty | R65: full | S65: empty
C66: ENERO | D66: =D30/D12-1 -> 42.1% | E66: =E30/E12-1 -> -52.6% | F66: 27.8% | G66: 30.7% | H66: 15.3% | I66: 47.5% | J66: 47.7% | K66: 3.9% | L66: 32.6% | M66: -52.6% | N66: 13.3% | O66: -12.2% | P66: 16.8% | Q66: 6.4% | R66: 21.4% | S66: 119.5% | T66: 27.2% | U66: 28.3%
C67: FEBRERO | D67: =D31/D13-1 -> 9.7% | E67: -23.6% | F67: 17.1% | G67: 51.0% | H67: 5.7% | I67: -28.5% | J67: 13.1% | K67: -21.3% | L67: -22.4% | M67: -27.7% | N67: -22.8% | O67: 34.2% | P67: -25.0% | Q67: 53.3% | R67: -12.5% | S67: 152.0% | T67: 10.2% | U67: 12.0%
C68: MARZO | D68: 35.8% | E68: 3.2% | F68: 35.1% | G68: 24.4% | H68: 14.8% | I68: -14.8% | J68: 23.9% | K68: 5.5% | L68: -12.5% | M68: 29.0% | N68: -7.2% | O68: 153.3% | P68: 43.7% | Q68: 104.8% | R68: 2.0% | S68: 106.7% | T68: 23.3% | U68: 24.6%
C69: ABRIL | D69: 4.3% | E69: 23.7% | F69: 13.1% | G69: 10.7% | H69: -5.3% | I69: 44.8% | J69: 1.4% | K69: 36.8% | L69: 11.8% | M69: -43.2% | N69: -2.5% | O69: 18.8% | P69: -26.9% | Q69: 13.2% | R69: -34.6% | S69: 26.7% | T69: 9.1% | U69: 9.4%
C70: MAYO | D70: -11.9% | E70: -54.5% | F70: -6.7% | G70: 6.8% | H70: -5.6% | I70: 28.1% | J70: 1.7% | K70: -1.0% | L70: -12.1% | M70: -15.3% | N70: -9.0% | O70: 110.6% | P70: -46.5% | Q70: 23.3% | R70: -29.1% | S70: -9.5% | T70: -0.9% | U70: 0.3%
C71: JUNIO | D71: -3.3% | E71: -3.1% | F71: 6.5% | G71: -42.2% | H71: -9.0% | I71: -9.8% | J71: 8.7% | K71: -42.0% | L71: -15.1% | M71: 51.5% | N71: 2.6% | O71: 88.8% | P71: -49.4% | Q71: -20.2% | R71: -32.5% | S71: -54.6% | T71: -9.9% | U71: -10.2%
C72: JULIO | D72: 1.0% | E72: -28.8% | F72: 67.3% | G72: -18.6% | H72: 4.2% | I72: -8.5% | J72: 24.1% | K72: 28.9% | L72: -6.1% | M72: 1.7% | N72: 8.3% | O72: 41.9% | P72: 1.2% | Q72: 12.8% | R72: -9.2% | S72: -32.9% | T72: 17.3% | U72: 19.4%
C73: AGOSTO | D73: -26.6% | E73: -54.1% | F73: 18.3% | G73: -12.6% | H73: -7.8% | I73: -54.1% | J73: 12.6% | K73: -37.2% | L73: -39.4% | M73: -47.9% | N73: -10.5% | O73: 2.3% | P73: -45.5% | Q73: -33.9% | R73: -37.8% | S73: 10.2% | T73: -5.1% | U73: -2.5%
C74: SEPTIEMBRE | D74: -24.3% | E74: 7.7% | F74: 15.8% | G74: -24.4% | H74: -3.1% | I74: -54.0% | J74: -2.0% | K74: -24.2% | L74: -10.4% | M74: -34.3% | N74: 20.5% | O74: 114.7% | P74: -52.0% | Q74: -48.0% | R74: -39.4% | S74: -26.7% | T74: -5.6% | U74: -4.0%
C75: OCTUBRE | D75: -12.2% | E75: 60.4% | F75: -0.2% | G75: -4.8% | H75: -5.0% | I75: 87.6% | J75: -5.5% | K75: -18.4% | L75: -25.4% | M75: -6.0% | N75: -3.9% | O75: 106.8% | P75: 0.9% | Q75: 55.0% | R75: -1.4% | S75: -0.6% | T75: 0.3% | U75: -0.6%
C76: NOVIEMBRE | D76: 10.1% | E76: 31.6% | F76: 22.7% | G76: -1.6% | H76: 4.8% | I76: 45.1% | J76: -2.7% | K76: -41.1% | L76: -5.3% | M76: -28.9% | N76: -0.0% | O76: 93.2% | P76: -35.6% | Q76: -56.5% | R76: -34.4% | S76: 36.1% | T76: 4.4% | U76: 3.3%
C77: DICIEMBRE | D77: 3.1% | E77: 81.4% | F77: 18.0% | G77: 29.8% | H77: 1.7% | I77: 110.9% | J77: 3.7% | K77: -34.5% | L77: -12.1% | M77: -10.2% | N77: 21.3% | O77: 183.6% | P77: -29.4% | Q77: 15.3% | R77: -13.8% | S77: 127.7% | T77: 12.6% | U77: 12.0%
C78: TOTAL | D78: =+D60/D24 -> 0.2% | E78: -6.2% | F78: 18.7% | G78: -0.5% | H78: 0.4% | I78: 12.0% | J78: 10.1% | K78: -16.1% | L78: -11.2% | M78: -17.4% | N78: 0.5% | O78: 66.9% | P78: -25.3% | Q78: -2.1% | R78: -20.9% | S78: 15.4% | T78: =+T60/T24 -> 6.3% | U78: 7.0%

Sheet 2023 VS 2022
C1: IMPO + EXPO (BOXES FULL) | H1: =+(D60+F60+H60+J60)/(+D24+F24+H24+J24) -> -4.5% | J1: INDICADORES ENERO - DICIEMBRE
C2: IMPO + EXPO (TEUs FULL) | H2: =+((D60+H60)+2*(F60+J60))/((D24+H24)+2*(F24+J24)) -> -4.9%
C3: IMPO + EXPO + TRANS + CABOT (BOXES EMPTY) | H3: =+(E60+G60+I60+K60+M60+O60+Q60+S60)/+(E24+G24+I24+K24+M24+O24+Q24+S24) -> 21.0%
C4: TRANSITO (BOXES) | H4: =+(L60+M60+N60+O60)/+(L24+M24+N24+O24) -> 12.8% | J4: PORCENTAJES DE VARIACIÓN 2023 VS. 2022
C5: CABOTAJE (BOXES) | H5: =+(P60+Q60+R60+S60)/(P24+Q24+R24+S24) -> 9.0%
C6: TEUs TOTALES | H6: =+U60/U24 -> 4.0%
C8: 2022 | D8: CANTIDAD CONTENEDORES ENERO - DICIEMBRE 2022 x MES
C9: MES | D9: IMPORTACIÓN | H9: EXPORTACIÓN | L9: TRÁNSITO | P9: CABOTAJE | T9: TOTAL BOXES | U9: TOTAL TEUS
D10: 20 pies | F10: 40 pies | H10: 20 pies | J10: 40 pies | L10: 20 pies | N10: 40 pies | P10: 20 pies | R10: 40 pies
D11: full | E11: empty | F11: full | G11: empty | H11: full | I11: empty | J11: full | K11: empty | L11: full | M11: empty | N11: full | O11: empty | P11: full | Q11: empty | R11: full | S11: empty
C12: ENERO | D12: 14,751 | E12: 4,294 | F12: 54,005 | G12: 7,732 | H12: 12,799 | I12: 2,028 | J12: 47,475 | K12: 20,296 | L12: 3,246 | M12: 173 | N12: 6,650 | O12: 4,061 | P12: 874 | Q12: 886 | R12: 1,509 | S12: 2,677 | T12: =SUM(D12:S12) -> 183,456 | U12: =D12+E12+H12+I12+L12+M12+P12+Q12+(2*(F12+G12+J12+K12+N12+O12+R12+S12)) -> 327,861
C13: FEBRERO | D13: 16,235 | E13: 3,247 | F13: 56,899 | G13: 14,761 | H13: 10,875 | I13: 2,874 | J13: 46,529 | K13: 15,927 | L13: 2,628 | M13: 151 | N13: 5,046 | O13: 3,560 | P13: 453 | Q13: 474 | R13: 1,016 | S13: 4,826 | T13: =SUM(D13:S13) -> 185,501 | U13: =D13+E13+H13+I13+L13+M13+P13+Q13+(2*(F13+G13+J13+K13+N13+O13+R13+S13)) -> 334,065
C14: MARZO | D14: 13,395 | E14: 3,428 | F14: 50,487 | G14: 18,648 | H14: 12,176 | I14: 3,260 | J14: 58,483 | K14: 21,777 | L14: 3,371 | M14: 244 | N14: 8,088 | O14: 5,496 | P14: 613 | Q14: 571 | R14: 2,713 | S14: 6,317 | T14: 209,067 | U14: 381,076
C15: ABRIL | D15: 13,030 | E15: 3,460 | F15: 46,846 | G15: 21,173 | H15: 11,575 | I15: 3,028 | J15: 55,187 | K15: 22,267 | L15: 3,449 | M15: 289 | N15: 6,947 | O15: 3,861 | P15: 518 | Q15: 565 | R15: 1,161 | S15: 5,007 | T15: 198,363 | U15: 360,812
C16: MAYO | D16: 13,731 | E16: 2,824 | F16: 47,711 | G16: 15,621 | H16: 14,609 | I16: 5,922 | J16: 54,779 | K16: 21,350 | L16: 3,734 | M16: 304 | N16: 8,238 | O16: 5,084 | P16: 381 | Q16: 279 | R16: 1,502 | S16: 3,270 | T16: 199,339 | U16: 356,894
C17: JUNIO | D17: 12,511 | E17: 3,328 | F17: 43,921 | G17: 16,376 | H17: 14,167 | I17: 7,631 | J17: 51,697 | K17: 21,584 | L17: 3,103 | M17: 461 | N17: 7,522 | O17: 3,577 | P17: 638 | Q17: 301 | R17: 1,577 | S17: 1,721 | T17: =SUM(D17:S17) -> 190,115 | U17: 338,090
C18: JULIO | D18: 13,280 | E18: 3,646 | F18: 46,936 | G18: 19,598 | H18: 13,640 | I18: 4,831 | J18: 47,587 | K18: 19,018 | L18: 3,254 | M18: 772 | N18: 6,800 | O18: 4,764 | P18: 731 | Q18: 988 | R18: 1,848 | S18: 4,313 | T18: 192,006 | U18: 342,870
C19: AGOSTO | D19: 12,096 | E19: 4,036 | F19: 45,525 | G19: 19,789 | H19: 13,075 | I19: 4,090 | J19: 47,932 | K19: 19,968 | L19: 2,952 | M19: 122 | N19: 7,907 | O19: 3,904 | P19: 471 | Q19: 548 | R19: 1,465 | S19: 3,956 | T19: 187,836 | U19: 338,282
C20: SEPTIEMBRE | D20: 12,041 | E20: 5,211 | F20: 45,463 | G20: 19,307 | H20: 13,277 | I20: 2,873 | J20: 46,886 | K20: 20,340 | L20: 3,540 | M20: 315 | N20: 7,839 | O20: 3,423 | P20: 459 | Q20: 810 | R20: 1,688 | S20: 2,338 | T20: 185,810 | U20: 333,094
C21: OCTUBRE | D21: 10,134 | E21: 5,086 | F21: 34,765 | G21: 24,210 | H21: 11,158 | I21: 2,297 | J21: 39,453 | K21: 17,995 | L21: 3,079 | M21: 242 | N21: 7,158 | O21: 4,200 | P21: 505 | Q21: 662 | R21: 1,336 | S21: 1,883 | T21: 164,163 | U21: 295,163
C22: NOVIEMBRE | D22: 12,609 | E22: 6,011 | F22: 41,829 | G22: 27,092 | H22: 11,771 | I22: 2,538 | J22: 44,222 | K22: 14,703 | L22: 4,124 | M22: 804 | N22: 8,539 | O22: 2,589 | P22: 444 | Q22: 1,324 | R22: 1,785 | S22: 3,086 | T22: 183,470 | U22: 327,315
C23: DICIEMBRE | D23: 12,721 | E23: 4,526 | F23: 40,038 | G23: 21,080 | H23: 13,463 | I23: 3,536 | J23: 58,722 | K23: 19,677 | L23: 3,567 | M23: 552 | N23: 8,024 | O23: 2,771 | P23: 607 | Q23: 676 | R23: 1,683 | S23: 1,642 | T23: 193,285 | U23: 346,922
C24: TOTAL | D24: =SUM(D12:D23) -> 156,534 | E24: =SUM(E12:E23) -> 49,097 | F24: 554,425 | G24: 225,387 | H24: 152,585 | I24: 44,908 | J24: 598,952 | K24: 234,902 | L24: 40,047 | M24: 4,429 | N24: 88,758 | O24: 47,290 | P24: 6,694 | Q24: 8,084 | R24: 19,283 | S24: 41,036 | T24: 2,272,411 | U24: 4,082,444
C26: 2023 | D26: CANTIDAD CONTENEDORES ENERO - DICIEMBRE 2023 x MES
C27: MES | D27: IMPORTACIÓN | H27: EXPORTACIÓN | L27: TRÁNSITO | P27: CABOTAJE | T27: TOTAL BOXES | U27: TOTAL TEUS
D28: 20 pies | F28: 40 pies | H28: 20 pies | J28: 40 pies | L28: 20 pies | N28: 40 pies | P28: 20 pies | R28: 40 pies
D29: full | E29: empty | F29: full | G29: empty | H29: full | I29: empty | J29: full | K29: empty | L29: full | M29: empty | N29: full | O29: empty | P29: full | Q29: empty | R29: full | S29: empty
C30: ENERO | D30: 10,907 | E30: 4,915 | F30: 34,904 | G30: 18,745 | H30: 9,070 | I30: 3,401 | J30: 41,017 | K30: 19,731 | L30: 2,778 | M30: 532 | N30: 7,090 | O30: 6,866 | P30: 600 | Q30: 236 | R30: 1,552 | S30: 2,401 | T30: =SUM(D30:S30) -> 164,745 | U30: =D30+E30+H30+I30+L30+M30+P30+Q30+(2*(F30+G30+J30+K30+N30+O30+R30+S30)) -> 297,051
C31: FEBRERO | D31: 12,876 | E31: 3,813 | F31: 35,249 | G31: 20,751 | H31: 11,155 | I31: 5,821 | J31: 50,680 | K31: 22,656 | L31: 3,974 | M31: 390 | N31: 7,790 | O31: 3,624 | P31: 1,011 | Q31: 182 | R31: 2,039 | S31: 2,007 | T31: =SUM(D31:S31) -> 184,018 | U31: =D31+E31+H31+I31+L31+M31+P31+Q31+(2*(F31+G31+J31+K31+N31+O31+R31+S31)) -> 328,814
C32: MARZO | D32: 11,971 | E32: 2,885 | F32: 33,394 | G32: 28,656 | H32: 10,873 | I32: 7,489 | J32: 53,139 | K32: 16,332 | L32: 4,148 | M32: 400 | N32: 8,787 | O32: 2,644 | P32: 474 | Q32: 167 | R32: 1,519 | S32: 2,460 | T32: 185,338 | U32: 332,269
C33: ABRIL | D33: 13,016 | E33: 2,619 | F33: 36,012 | G33: 20,569 | H33: 11,581 | I33: 4,117 | J33: 47,812 | K33: 13,422 | L33: 3,114 | M33: 273 | N33: 7,760 | O33: 5,390 | P33: 817 | Q33: 228 | R33: 2,462 | S33: 2,743 | T33: 171,935 | U33: 308,105
C34: MAYO | D34: 15,026 | E34: 4,236 | F34: 42,673 | G34: 21,421 | H34: 12,128 | I34: 4,168 | J34: 51,979 | K34: 18,006 | L34: 3,751 | M34: 593 | N34: 8,133 | O34: 4,712 | P34: 944 | Q34: 424 | R34: 2,114 | S34: 4,330 | T34: 194,638 | U34: 348,006
C35: JUNIO | D35: 13,625 | E35: 4,284 | F35: 40,632 | G35: 33,633 | H35: 12,413 | I35: 5,298 | J35: 49,420 | K35: 25,368 | L35: 3,320 | M35: 357 | N35: 8,277 | O35: 3,810 | P35: 772 | Q35: 243 | R35: 1,910 | S35: 5,145 | T35: =SUM(D35:S35) -> 208,507 | U35: 376,702
C36: JULIO | D36: 14,389 | E36: 3,193 | F36: 36,782 | G36: 37,702 | H36: 11,449 | I36: 6,164 | J36: 53,223 | K36: 18,596 | L36: 4,067 | M36: 604 | N36: 8,532 | O36: 6,136 | P36: 419 | Q36: 235 | R36: 1,442 | S36: 5,906 | T36: 208,839 | U36: 377,158
C37: AGOSTO | D37: 17,430 | E37: 2,911 | F37: 47,530 | G37: 32,061 | H37: 12,586 | I37: 5,684 | J37: 54,066 | K37: 24,434 | L37: 4,100 | M37: 737 | N37: 7,959 | O37: 5,413 | P37: 701 | Q37: 254 | R37: 2,150 | S37: 4,576 | T37: 222,592 | U37: 400,781
C38: SEPTIEMBRE | D38: 15,264 | E38: 3,259 | F38: 45,410 | G38: 31,674 | H38: 11,529 | I38: 5,939 | J38: 53,354 | K38: 21,107 | L38: 4,173 | M38: 554 | N38: 7,374 | O38: 3,246 | P38: 692 | Q38: 581 | R38: 2,135 | S38: 4,545 | T38: 210,836 | U38: 379,681
C39: OCTUBRE | D39: 14,172 | E39: 2,826 | F39: 42,461 | G39: 28,325 | H39: 12,221 | I39: 5,403 | J39: 44,926 | K39: 20,557 | L39: 4,010 | M39: 849 | N39: 8,875 | O39: 4,984 | P39: 432 | Q39: 524 | R39: 1,410 | S39: 6,772 | T39: 198,747 | U39: 357,057
C40: NOVIEMBRE | D40: 14,195 | E40: 3,870 | F40: 41,902 | G40: 29,038 | H40: 12,344 | I40: 8,000 | J40: 51,306 | K40: 25,298 | L40: 3,861 | M40: 484 | N40: 8,529 | O40: 5,330 | P40: 578 | Q40: 754 | R40: 1,836 | S40: 5,008 | T40: 212,333 | U40: 380,580
C41: DICIEMBRE | D41: 13,919 | E41: 2,421 | F41: 42,021 | G41: 20,751 | H41: 12,630 | I41: 4,572 | J41: 60,532 | K41: 23,195 | L41: 3,661 | M41: 245 | N41: 7,900 | O41: 3,529 | P41: 609 | Q41: 157 | R41: 1,628 | S41: 1,708 | T41: 199,478 | U41: 360,742
C42: TOTAL | D42: =SUM(D30:D41) -> 166,790 | E42: =SUM(E30:E41) -> 41,232 | F42: 478,970 | G42: 323,326 | H42: 139,979 | I42: 66,056 | J42: 611,454 | K42: 248,702 | L42: 44,957 | M42: 6,018 | N42: 97,006 | O42: 55,684 | P42: 8,049 | Q42: 3,985 | R42: 22,197 | S42: 47,601 | T42: 2,362,006 | U42: 4,246,946
C44: DIFERENCIA ENERO - DICIEMBRE 2023 vs 2022 (UNIDADES)
C45: MES | D45: IMPORTACIÓN | H45: EXPORTACIÓN | L45: TRÁNSITO | P45: CABOTAJE | T45: TOTAL BOXES | U45: TOTAL TEUS
D46: 20 pies | F46: 40 pies | H46: 20 pies | J46: 40 pies | L46: 20 pies | N46: 40 pies | P46: 20 pies | R46: 40 pies
D47: full | E47: empty | F47: full | G47: empty | H47: full | I47: empty | J47: full | K47: empty | L47: full | M47: empty | N47: full | O47: empty | P47: full | Q47: empty | R47: full | S47: empty
C48: ENERO | D48: =D30-D12 -> -3,844 | E48: =E30-E12 -> 621 | F48: -19,101 | G48: 11,013 | H48: -3,729 | I48: 1,373 | J48: -6,458 | K48: -565 | L48: -468 | M48: 359 | N48: 440 | O48: 2,805 | P48: -274 | Q48: -650 | R48: 43 | S48: -276 | T48: -18,711 | U48: -30,810
C49: FEBRERO | D49: =D31-D13 -> -3,359 | E49: 566 | F49: -21,650 | G49: 5,990 | H49: 280 | I49: 2,947 | J49: 4,151 | K49: 6,729 | L49: 1,346 | M49: 239 | N49: 2,744 | O49: 64 | P49: 558 | Q49: -292 | R49: 1,023 | S49: -2,819 | T49: -1,483 | U49: -5,251
C50: MARZO | D50: -1,424 | E50: -543 | F50: -17,093 | G50: 10,008 | H50: -1,303 | I50: 4,229 | J50: -5,344 | K50: -5,445 | L50: 777 | M50: 156 | N50: 699 | O50: -2,852 | P50: -139 | Q50: -404 | R50: -1,194 | S50: -3,857 | T50: -23,729 | U50: -48,807
C51: ABRIL | D51: -14 | E51: -841 | F51: -10,834 | G51: -604 | H51: 6 | I51: 1,089 | J51: -7,375 | K51: -8,845 | L51: -335 | M51: -16 | N51: 813 | O51: 1,529 | P51: 299 | Q51: -337 | R51: 1,301 | S51: -2,264 | T51: -26,428 | U51: -52,707
C52: MAYO | D52: 1,295 | E52: 1,412 | F52: -5,038 | G52: 5,800 | H52: -2,481 | I52: -1,754 | J52: -2,800 | K52: -3,344 | L52: 17 | M52: 289 | N52: -105 | O52: -372 | P52: 563 | Q52: 145 | R52: 612 | S52: 1,060 | T52: -4,701 | U52: -8,888
C53: JUNIO | D53: 1,114 | E53: 956 | F53: -3,289 | G53: 17,257 | H53: -1,754 | I53: -2,333 | J53: -2,277 | K53: 3,784 | L53: 217 | M53: -104 | N53: 755 | O53: 233 | P53: 134 | Q53: -58 | R53: 333 | S53: 3,424 | T53: 18,392 | U53: 38,612
C54: JULIO | D54: 1,109 | E54: -453 | F54: -10,154 | G54: 18,104 | H54: -2,191 | I54: 1,333 | J54: 5,636 | K54: -422 | L54: 813 | M54: -168 | N54: 1,732 | O54: 1,372 | P54: -312 | Q54: -753 | R54: -406 | S54: 1,593 | T54: 16,833 | U54: 34,288
C55: AGOSTO | D55: 5,334 | E55: -1,125 | F55: 2,005 | G55: 12,272 | H55: -489 | I55: 1,594 | J55: 6,134 | K55: 4,466 | L55: 1,148 | M55: 615 | N55: 52 | O55: 1,509 | P55: 230 | Q55: -294 | R55: 685 | S55: 620 | T55: 34,756 | U55: 62,499
C56: SEPTIEMBRE | D56: 3,223 | E56: -1,952 | F56: -53 | G56: 12,367 | H56: -1,748 | I56: 3,066 | J56: 6,468 | K56: 767 | L56: 633 | M56: 239 | N56: -465 | O56: -177 | P56: 233 | Q56: -229 | R56: 447 | S56: 2,207 | T56: 25,026 | U56: 46,587
C57: OCTUBRE | D57: 4,038 | E57: -2,260 | F57: 7,696 | G57: 4,115 | H57: 1,063 | I57: 3,106 | J57: 5,473 | K57: 2,562 | L57: 931 | M57: 607 | N57: 1,717 | O57: 784 | P57: -73 | Q57: -138 | R57: 74 | S57: 4,889 | T57: 34,584 | U57: 61,894
C58: NOVIEMBRE | D58: 1,586 | E58: -2,141 | F58: 73 | G58: 1,946 | H58: 573 | I58: 5,462 | J58: 7,084 | K58: 10,595 | L58: -263 | M58: -320 | N58: -10 | O58: 2,741 | P58: 134 | Q58: -570 | R58: 51 | S58: 1,922 | T58: 28,863 | U58: 53,265
C59: DICIEMBRE | D59: 1,198 | E59: -2,105 | F59: 1,983 | G59: -329 | H59: -833 | I59: 1,036 | J59: 1,810 | K59: 3,518 | L59: 94 | M59: -307 | N59: -124 | O59: 758 | P59: 2 | Q59: -519 | R59: -55 | S59: 66 | T59: 6,193 | U59: 13,820
C60: TOTAL | D60: 10,256 | E60: -7,865 | F60: -75,455 | G60: 97,939 | H60: -12,606 | I60: 21,148 | J60: 12,502 | K60: 13,800 | L60: 4,910 | M60: 1,589 | N60: 8,248 | O60: 8,394 | P60: 1,355 | Q60: -4,099 | R60: 2,914 | S60: 6,565 | T60: 89,595 | U60: 164,502
C62: DIFERENCIA ENERO - DICIEMBRE 2023 vs 2022 (PORCENTAJES)
C63: MES | D63: IMPORTACIÓN | H63: EXPORTACIÓN | L63: TRÁNSITO | P63: CABOTAJE | T63: TOTAL BOXES | U63: TOTAL TEUS
D64: 20 pies | F64: 40 pies | H64: 20 pies | J64: 40 pies | L64: 20 pies | N64: 40 pies | P64: 20 pies | R64: 40 pies
D65: full | E65: empty | F65: full | G65: empty | H65: full | I65: empty | J65: full | K65: empty | L65: full | M65: empty | N65: full | O65: empty | P65: full | Q65: empty | R65: full | S65: empty
C66: ENERO | D66: =D30/D12-1 -> -26.1% | E66: =E30/E12-1 -> 14.5% | F66: -35.4% | G66: 142.4% | H66: -29.1% | I66: 67.7% | J66: -13.6% | K66: -2.8% | L66: -14.4% | M66: 207.5% | N66: 6.6% | O66: 69.1% | P66: -31.4% | Q66: -73.4% | R66: 2.8% | S66: -10.3% | T66: -10.2% | U66: -9.4%
C67: FEBRERO | D67: =D31/D13-1 -> -20.7% | E67: 17.4% | F67: -38.0% | G67: 40.6% | H67: 2.6% | I67: 102.5% | J67: 8.9% | K67: 42.2% | L67: 51.2% | M67: 158.3% | N67: 54.4% | O67: 1.8% | P67: 123.2% | Q67: -61.6% | R67: 100.7% | S67: -58.4% | T67: -0.8% | U67: -1.6%
C68: MARZO | D68: -10.6% | E68: -15.8% | F68: -33.9% | G68: 53.7% | H68: -10.7% | I68: 129.7% | J68: -9.1% | K68: -25.0% | L68: 23.0% | M68: 63.9% | N68: 8.6% | O68: -51.9% | P68: -22.7% | Q68: -70.8% | R68: -44.0% | S68: -61.1% | T68: -11.3% | U68: -12.8%
C69: ABRIL | D69: =D33/D15-1 -> -0.1% | E69: -24.3% | F69: -23.1% | G69: -2.9% | H69: 0.1% | I69: 36.0% | J69: -13.4% | K69: -39.7% | L69: -9.7% | M69: -5.5% | N69: 11.7% | O69: 39.6% | P69: 57.7% | Q69: -59.6% | R69: 112.1% | S69: -45.2% | T69: -13.3% | U69: -14.6%
C70: MAYO | D70: =D34/D16-1 -> 9.4% | E70: 50.0% | F70: -10.6% | G70: 37.1% | H70: -17.0% | I70: -29.6% | J70: -5.1% | K70: -15.7% | L70: 0.5% | M70: 95.1% | N70: -1.3% | O70: -7.3% | P70: 147.8% | Q70: 52.0% | R70: 40.7% | S70: 32.4% | T70: -2.4% | U70: -2.5%
C71: JUNIO | D71: =D35/D17-1 -> 8.9% | E71: 28.7% | F71: -7.5% | G71: 105.4% | H71: -12.4% | I71: -30.6% | J71: -4.4% | K71: 17.5% | L71: 7.0% | M71: -22.6% | N71: 10.0% | O71: 6.5% | P71: 21.0% | Q71: -19.3% | R71: 21.1% | S71: 199.0% | T71: 9.7% | U71: 11.4%
C72: JULIO | D72: =D36/D18-1 -> 8.4% | E72: -12.4% | F72: -21.6% | G72: 92.4% | H72: -16.1% | I72: 27.6% | J72: 11.8% | K72: -2.2% | L72: 25.0% | M72: -21.8% | N72: 25.5% | O72: 28.8% | P72: -42.7% | Q72: -76.2% | R72: -22.0% | S72: 36.9% | T72: 8.8% | U72: 10.0%
C73: AGOSTO | D73: =D37/D19-1 -> 44.1% | E73: -27.9% | F73: 4.4% | G73: 62.0% | H73: -3.7% | I73: 39.0% | J73: 12.8% | K73: 22.4% | L73: 38.9% | M73: 504.1% | N73: 0.7% | O73: 38.7% | P73: 48.8% | Q73: -53.6% | R73: 46.8% | S73: 15.7% | T73: 18.5% | U73: 18.5%
C74: SEPTIEMBRE | D74: =D38/D20-1 -> 26.8% | E74: -37.5% | F74: -0.1% | G74: 64.1% | H74: -13.2% | I74: 106.7% | J74: 13.8% | K74: 3.8% | L74: 17.9% | M74: 75.9% | N74: -5.9% | O74: -5.2% | P74: 50.8% | Q74: -28.3% | R74: 26.5% | S74: 94.4% | T74: 13.5% | U74: 14.0%
C75: OCTUBRE | D75: =D39/D21-1 -> 39.8% | E75: -44.4% | F75: 22.1% | G75: 17.0% | H75: 9.5% | I75: 135.2% | J75: 13.9% | K75: 14.2% | L75: 30.2% | M75: 250.8% | N75: 24.0% | O75: 18.7% | P75: -14.5% | Q75: -20.8% | R75: 5.5% | S75: 259.6% | T75: 21.1% | U75: 21.0%
C76: NOVIEMBRE | D76: =D40/D22-1 -> 12.6% | E76: -35.6% | F76: 0.2% | G76: 7.2% | H76: 4.9% | I76: 215.2% | J76: 16.0% | K76: 72.1% | L76: -6.4% | M76: -39.8% | N76: -0.1% | O76: 105.9% | P76: 30.2% | Q76: -43.1% | R76: 2.9% | S76: 62.3% | T76: 15.7% | U76: 16.3%
C77: DICIEMBRE | D77: =D41/D23-1 -> 9.4% | E77: -46.5% | F77: 5.0% | G77: -1.6% | H77: -6.2% | I77: 29.3% | J77: 3.1% | K77: 17.9% | L77: 2.6% | M77: -55.6% | N77: -1.5% | O77: 27.4% | P77: 0.3% | Q77: -76.8% | R77: -3.3% | S77: 4.0% | T77: 3.2% | U77: 4.0%
C78: TOTAL | D78: =+D60/D24 -> 6.6% | E78: -16.0% | F78: -13.6% | G78: 43.5% | H78: -8.3% | I78: 47.1% | J78: 2.1% | K78: 5.9% | L78: 12.3% | M78: 35.9% | N78: 9.3% | O78: 17.8% | P78: 20.2% | Q78: -50.7% | R78: 15.1% | S78: 16.0% | T78: 3.9% | U78: 4.0%

Sheet 2022 VS 2021
C1: IMPO + EXPO (BOXES FULL) | H1: =+(D60+F60+H60+J60)/(+D24+F24+H24+J24) -> -6.3% | J1: INDICADORES ENERO - DICIEMBRE
C2: IMPO + EXPO (TEUs FULL) | H2: =+((D60+H60)+2*(F60+J60))/((D24+H24)+2*(F24+J24)) -> -4.9%
C3: IMPO + EXPO + TRANS + CABOT (BOXES EMPTY) | H3: =+(E60+G60+I60+K60+M60+O60+Q60+S60)/+(E24+G24+I24+K24+M24+O24+Q24+S24) -> 2.6%
C4: TRANSITO (BOXES) | H4: =+(L60+M60+N60+O60)/+(L24+M24+N24+O24) -> -8.3% | J4: PORCENTAJES DE VARIACIÓN 2022 VS. 2021
C5: CABOTAJE (BOXES) | H5: =+(P60+Q60+R60+S60)/(P24+Q24+R24+S24) -> 13.6%
C6: TEUs TOTALES | H6: =+U60/U24 -> -2.8%
C8: 2021 | D8: CANTIDAD CONTENEDORES ENERO - DICIEMBRE 2021 x MES
C9: MES | D9: IMPORTACIÓN | H9: EXPORTACIÓN | L9: TRÁNSITO | P9: CABOTAJE | T9: TOTAL BOXES | U9: TOTAL TEUS
D10: 20 pies | F10: 40 pies | H10: 20 pies | J10: 40 pies | L10: 20 pies | N10: 40 pies | P10: 20 pies | R10: 40 pies
D11: full | E11: empty | F11: full | G11: empty | H11: full | I11: empty | J11: full | K11: empty | L11: full | M11: empty | N11: full | O11: empty | P11: full | Q11: empty | R11: full | S11: empty
C12: ENERO | D12: 17,642 | E12: 3,738 | F12: 46,478 | G12: 18,468 | H12: 12,178 | I12: 2,950 | J12: 44,392 | K12: 17,850 | L12: 3,994 | M12: 448 | N12: 7,250 | O12: 3,363 | P12: 418 | Q12: 2,073 | R12: 938 | S12: 4,661 | T12: =SUM(D12:S12) -> 186,841 | U12: =D12+E12+H12+I12+L12+M12+P12+Q12+(2*(F12+G12+J12+K12+N12+O12+R12+S12)) -> 330,241
C13: FEBRERO | D13: 18,394 | E13: 3,554 | F13: 48,881 | G13: 18,957 | H13: 15,311 | I13: 3,995 | J13: 46,216 | K13: 19,595 | L13: 4,148 | M13: 601 | N13: 7,048 | O13: 4,981 | P13: 390 | Q13: 909 | R13: 970 | S13: 6,233 | T13: =SUM(D13:S13) -> 200,183 | U13: =D13+E13+H13+I13+L13+M13+P13+Q13+(2*(F13+G13+J13+K13+N13+O13+R13+S13)) -> 353,064
C14: MARZO | D14: 18,599 | E14: 5,192 | F14: 50,297 | G14: 25,454 | H14: 15,609 | I14: 3,850 | J14: 59,547 | K14: 21,818 | L14: 5,215 | M14: 364 | N14: 9,096 | O14: 5,872 | P14: 344 | Q14: 1,796 | R14: 972 | S14: 3,990 | T14: 228,015 | U14: 405,061
C15: ABRIL | D15: 15,552 | E15: 3,069 | F15: 41,743 | G15: 23,408 | H15: 13,946 | I15: 5,399 | J15: 56,534 | K15: 21,368 | L15: 3,426 | M15: 336 | N15: 5,833 | O15: 3,773 | P15: 387 | Q15: 670 | R15: 1,045 | S15: 3,162 | T15: 199,651 | U15: 356,517
C16: MAYO | D16: 17,244 | E16: 4,453 | F16: 50,930 | G16: 8,709 | H16: 15,315 | I16: 5,372 | J16: 47,606 | K16: 19,450 | L16: 4,038 | M16: 176 | N16: 8,022 | O16: 2,808 | P16: 382 | Q16: 604 | R16: 1,389 | S16: 2,000 | T16: 188,498 | U16: 329,412
C17: JUNIO | D17: 15,873 | E17: 2,705 | F17: 45,730 | G17: 16,005 | H17: 14,223 | I17: 4,797 | J17: 47,697 | K17: 15,687 | L17: 3,864 | M17: 186 | N17: 7,614 | O17: 4,410 | P17: 176 | Q17: 365 | R17: 718 | S17: 1,562 | T17: =SUM(D17:S17) -> 181,612 | U17: 321,035
C18: JULIO | D18: 15,092 | E18: 1,846 | F18: 48,317 | G18: 14,751 | H18: 11,544 | I18: 4,012 | J18: 42,297 | K18: 17,720 | L18: 3,769 | M18: 185 | N18: 7,643 | O18: 3,759 | P18: 234 | Q18: 648 | R18: 1,101 | S18: 2,426 | T18: 175,344 | U18: 313,358
C19: AGOSTO | D19: 17,497 | E19: 1,811 | F19: 57,890 | G19: 14,798 | H19: 14,345 | I19: 4,486 | J19: 48,908 | K19: 23,897 | L19: 3,182 | M19: 386 | N19: 6,977 | O19: 4,898 | P19: 242 | Q19: 321 | R19: 871 | S19: 1,975 | T19: 202,484 | U19: 362,698
C20: SEPTIEMBRE | D20: 14,279 | E20: 3,162 | F20: 48,104 | G20: 17,323 | H20: 14,913 | I20: 4,218 | J20: 42,998 | K20: 20,704 | L20: 3,738 | M20: 453 | N20: 9,187 | O20: 4,152 | P20: 266 | Q20: 1,028 | R20: 1,221 | S20: 3,626 | T20: 189,372 | U20: 336,687
C21: OCTUBRE | D21: 16,794 | E21: 2,720 | F21: 61,137 | G21: 10,920 | H21: 14,546 | I21: 3,285 | J21: 49,614 | K21: 25,083 | L21: 4,367 | M21: 206 | N21: 10,502 | O21: 2,976 | P21: 796 | Q21: 546 | R21: 2,592 | S21: 1,285 | T21: 207,369 | U21: 371,478
C22: NOVIEMBRE | D22: 14,477 | E22: 2,810 | F22: 52,824 | G22: 13,068 | H22: 15,260 | I22: 2,626 | J22: 41,285 | K22: 25,755 | L22: 2,778 | M22: 340 | N22: 6,386 | O22: 3,758 | P22: 344 | Q22: 653 | R22: 1,122 | S22: 2,683 | T22: 186,169 | U22: 333,050
C23: DICIEMBRE | D23: 15,602 | E23: 3,437 | F23: 57,230 | G23: 18,497 | H23: 15,552 | I23: 2,514 | J23: 53,997 | K23: 21,878 | L23: 4,231 | M23: 504 | N23: 10,171 | O23: 5,349 | P23: 594 | Q23: 504 | R23: 1,647 | S23: 3,200 | T23: 214,907 | U23: 386,876
C24: TOTAL | D24: =SUM(D12:D23) -> 197,045 | E24: =SUM(E12:E23) -> 38,497 | F24: 609,561 | G24: 200,358 | H24: 172,742 | I24: 47,504 | J24: 581,091 | K24: 250,805 | L24: 46,750 | M24: 4,185 | N24: 95,729 | O24: 50,099 | P24: 4,573 | Q24: 10,117 | R24: 14,586 | S24: 36,803 | T24: 2,360,445 | U24: 4,199,477
C26: 2022 | D26: CANTIDAD CONTENEDORES ENERO - DICIEMBRE 2022 x MES
C27: MES | D27: IMPORTACIÓN | H27: EXPORTACIÓN | L27: TRÁNSITO | P27: CABOTAJE | T27: TOTAL BOXES | U27: TOTAL TEUS
D28: 20 pies | F28: 40 pies | H28: 20 pies | J28: 40 pies | L28: 20 pies | N28: 40 pies | P28: 20 pies | R28: 40 pies
D29: full | E29: empty | F29: full | G29: empty | H29: full | I29: empty | J29: full | K29: empty | L29: full | M29: empty | N29: full | O29: empty | P29: full | Q29: empty | R29: full | S29: empty
C30: ENERO | D30: 14,751 | E30: 4,294 | F30: 54,005 | G30: 7,732 | H30: 12,799 | I30: 2,028 | J30: 47,475 | K30: 20,296 | L30: 3,246 | M30: 173 | N30: 6,650 | O30: 4,061 | P30: 874 | Q30: 886 | R30: 1,509 | S30: 2,677 | T30: =SUM(D30:S30) -> 183,456 | U30: =D30+E30+H30+I30+L30+M30+P30+Q30+(2*(F30+G30+J30+K30+N30+O30+R30+S30)) -> 327,861
C31: FEBRERO | D31: 16,235 | E31: 3,247 | F31: 56,899 | G31: 14,761 | H31: 10,875 | I31: 2,874 | J31: 46,529 | K31: 15,927 | L31: 2,628 | M31: 151 | N31: 5,046 | O31: 3,560 | P31: 453 | Q31: 474 | R31: 1,016 | S31: 4,826 | T31: =SUM(D31:S31) -> 185,501 | U31: =D31+E31+H31+I31+L31+M31+P31+Q31+(2*(F31+G31+J31+K31+N31+O31+R31+S31)) -> 334,065
C32: MARZO | D32: 13,395 | E32: 3,428 | F32: 50,487 | G32: 18,648 | H32: 12,176 | I32: 3,260 | J32: 58,483 | K32: 21,777 | L32: 3,371 | M32: 244 | N32: 8,088 | O32: 5,496 | P32: 613 | Q32: 571 | R32: 2,713 | S32: 6,317 | T32: 209,067 | U32: 381,076
C33: ABRIL | D33: 13,030 | E33: 3,460 | F33: 46,846 | G33: 21,173 | H33: 11,575 | I33: 3,028 | J33: 55,187 | K33: 22,267 | L33: 3,449 | M33: 289 | N33: 6,947 | O33: 3,861 | P33: 518 | Q33: 565 | R33: 1,161 | S33: 5,007 | T33: 198,363 | U33: 360,812
C34: MAYO | D34: 13,731 | E34: 2,824 | F34: 47,711 | G34: 15,621 | H34: 14,609 | I34: 5,922 | J34: 54,779 | K34: 21,350 | L34: 3,734 | M34: 304 | N34: 8,238 | O34: 5,084 | P34: 381 | Q34: 279 | R34: 1,502 | S34: 3,270 | T34: 199,339 | U34: 356,894
C35: JUNIO | D35: 12,511 | E35: 3,328 | F35: 43,921 | G35: 16,376 | H35: 14,167 | I35: 7,631 | J35: 51,697 | K35: 21,584 | L35: 3,103 | M35: 461 | N35: 7,522 | O35: 3,577 | P35: 638 | Q35: 301 | R35: 1,577 | S35: 1,721 | T35: =SUM(D35:S35) -> 190,115 | U35: 338,090
C36: JULIO | D36: 13,280 | E36: 3,646 | F36: 46,936 | G36: 19,598 | H36: 13,640 | I36: 4,831 | J36: 47,587 | K36: 19,018 | L36: 3,254 | M36: 772 | N36: 6,800 | O36: 4,764 | P36: 731 | Q36: 988 | R36: 1,848 | S36: 4,313 | T36: 192,006 | U36: 342,870
C37: AGOSTO | D37: 12,096 | E37: 4,036 | F37: 45,525 | G37: 19,789 | H37: 13,075 | I37: 4,090 | J37: 47,932 | K37: 19,968 | L37: 2,952 | M37: 122 | N37: 7,907 | O37: 3,904 | P37: 471 | Q37: 548 | R37: 1,465 | S37: 3,956 | T37: 187,836 | U37: 338,282
C38: SEPTIEMBRE | D38: 12,041 | E38: 5,211 | F38: 45,463 | G38: 19,307 | H38: 13,277 | I38: 2,873 | J38: 46,886 | K38: 20,340 | L38: 3,540 | M38: 315 | N38: 7,839 | O38: 3,423 | P38: 459 | Q38: 810 | R38: 1,688 | S38: 2,338 | T38: 185,810 | U38: 333,094
C39: OCTUBRE | D39: 10,134 | E39: 5,086 | F39: 34,765 | G39: 24,210 | H39: 11,158 | I39: 2,297 | J39: 39,453 | K39: 17,995 | L39: 3,079 | M39: 242 | N39: 7,158 | O39: 4,200 | P39: 505 | Q39: 662 | R39: 1,336 | S39: 1,883 | T39: 164,163 | U39: 295,163
C40: NOVIEMBRE | D40: 12,609 | E40: 6,011 | F40: 41,829 | G40: 27,092 | H40: 11,771 | I40: 2,538 | J40: 44,222 | K40: 14,703 | L40: 4,124 | M40: 804 | N40: 8,539 | O40: 2,589 | P40: 444 | Q40: 1,324 | R40: 1,785 | S40: 3,086 | T40: 183,470 | U40: 327,315
C41: DICIEMBRE | D41: 12,721 | E41: 4,526 | F41: 40,038 | G41: 21,080 | H41: 13,463 | I41: 3,536 | J41: 58,722 | K41: 19,677 | L41: 3,567 | M41: 552 | N41: 8,024 | O41: 2,771 | P41: 607 | Q41: 676 | R41: 1,683 | S41: 1,642 | T41: 193,285 | U41: 346,922
C42: TOTAL | D42: =SUM(D30:D41) -> 156,534 | E42: =SUM(E30:E41) -> 49,097 | F42: 554,425 | G42: 225,387 | H42: 152,585 | I42: 44,908 | J42: 598,952 | K42: 234,902 | L42: 40,047 | M42: 4,429 | N42: 88,758 | O42: 47,290 | P42: 6,694 | Q42: 8,084 | R42: 19,283 | S42: 41,036 | T42: 2,272,411 | U42: 4,082,444
C44: DIFERENCIA ENERO - DICIEMBRE 2022 vs 2021 (UNIDADES)
C45: MES | D45: IMPORTACIÓN | H45: EXPORTACIÓN | L45: TRÁNSITO | P45: CABOTAJE | T45: TOTAL BOXES | U45: TOTAL TEUS
D46: 20 pies | F46: 40 pies | H46: 20 pies | J46: 40 pies | L46: 20 pies | N46: 40 pies | P46: 20 pies | R46: 40 pies
D47: full | E47: empty | F47: full | G47: empty | H47: full | I47: empty | J47: full | K47: empty | L47: full | M47: empty | N47: full | O47: empty | P47: full | Q47: empty | R47: full | S47: empty
C48: ENERO | D48: =D30-D12 -> -2,891 | E48: =E30-E12 -> 556 | F48: 7,527 | G48: -10,736 | H48: 621 | I48: -922 | J48: 3,083 | K48: 2,446 | L48: -748 | M48: -275 | N48: -600 | O48: 698 | P48: 456 | Q48: -1,187 | R48: 571 | S48: -1,984 | T48: =T30-T12 -> -3,385 | U48: -2,380
C49: FEBRERO | D49: =D31-D13 -> -2,159 | E49: -307 | F49: 8,018 | G49: -4,196 | H49: -4,436 | I49: -1,121 | J49: 313 | K49: -3,668 | L49: -1,520 | M49: -450 | N49: -2,002 | O49: -1,421 | P49: 63 | Q49: -435 | R49: 46 | S49: -1,407 | T49: =T31-T13 -> -14,682 | U49: -18,999
C50: MARZO | D50: =D32-D14 -> -5,204 | E50: -1,764 | F50: 190 | G50: -6,806 | H50: -3,433 | I50: -590 | J50: -1,064 | K50: -41 | L50: -1,844 | M50: -120 | N50: -1,008 | O50: -376 | P50: 269 | Q50: -1,225 | R50: 1,741 | S50: 2,327 | T50: -18,948 | U50: -23,985
C51: ABRIL | D51: =D33-D15 -> -2,522 | E51: 391 | F51: 5,103 | G51: -2,235 | H51: -2,371 | I51: -2,371 | J51: -1,347 | K51: 899 | L51: 23 | M51: -47 | N51: 1,114 | O51: 88 | P51: 131 | Q51: -105 | R51: 116 | S51: 1,845 | T51: -1,288 | U51: 4,295
C52: MAYO | D52: =D34-D16 -> -3,513 | E52: -1,629 | F52: -3,219 | G52: 6,912 | H52: -706 | I52: 550 | J52: 7,173 | K52: 1,900 | L52: -304 | M52: 128 | N52: 216 | O52: 2,276 | P52: -1 | Q52: -325 | R52: 113 | S52: 1,270 | T52: 10,841 | U52: 27,482
C53: JUNIO | D53: =D35-D17 -> -3,362 | E53: 623 | F53: -1,809 | G53: 371 | H53: -56 | I53: 2,834 | J53: 4,000 | K53: 5,897 | L53: -761 | M53: 275 | N53: -92 | O53: -833 | P53: 462 | Q53: -64 | R53: 859 | S53: 159 | T53: 8,503 | U53: 17,055
C54: JULIO | D54: =D36-D18 -> -1,812 | E54: 1,800 | F54: -1,381 | G54: 4,847 | H54: 2,096 | I54: 819 | J54: 5,290 | K54: 1,298 | L54: -515 | M54: 587 | N54: -843 | O54: 1,005 | P54: 497 | Q54: 340 | R54: 747 | S54: 1,887 | T54: 16,662 | U54: 29,512
C55: AGOSTO | D55: =D37-D19 -> -5,401 | E55: 2,225 | F55: -12,365 | G55: 4,991 | H55: -1,270 | I55: -396 | J55: -976 | K55: -3,929 | L55: -230 | M55: -264 | N55: 930 | O55: -994 | P55: 229 | Q55: 227 | R55: 594 | S55: 1,981 | T55: -14,648 | U55: -24,416
C56: SEPTIEMBRE | D56: -2,238 | E56: 2,049 | F56: -2,641 | G56: 1,984 | H56: -1,636 | I56: -1,345 | J56: 3,888 | K56: -364 | L56: -198 | M56: -138 | N56: -1,348 | O56: -729 | P56: 193 | Q56: -218 | R56: 467 | S56: -1,288 | T56: -3,562 | U56: -3,593
C57: OCTUBRE | D57: =D39-D21 -> -6,660 | E57: 2,366 | F57: -26,372 | G57: 13,290 | H57: -3,388 | I57: -988 | J57: -10,161 | K57: -7,088 | L57: -1,288 | M57: 36 | N57: -3,344 | O57: 1,224 | P57: -291 | Q57: 116 | R57: -1,256 | S57: 598 | T57: -43,206 | U57: -76,315
C58: NOVIEMBRE | D58: =D40-D22 -> -1,868 | E58: 3,201 | F58: -10,995 | G58: 14,024 | H58: -3,489 | I58: -88 | J58: 2,937 | K58: -11,052 | L58: 1,346 | M58: 464 | N58: 2,153 | O58: -1,169 | P58: 100 | Q58: 671 | R58: 663 | S58: 403 | T58: -2,699 | U58: -5,735
C59: DICIEMBRE | D59: =D41-D23 -> -2,881 | E59: 1,089 | F59: -17,192 | G59: 2,583 | H59: -2,089 | I59: 1,022 | J59: 4,725 | K59: -2,201 | L59: -664 | M59: 48 | N59: -2,147 | O59: -2,578 | P59: 13 | Q59: 172 | R59: 36 | S59: -1,558 | T59: -21,622 | U59: -39,954
C60: TOTAL | D60: -40,511 | E60: 10,600 | F60: -55,136 | G60: 25,029 | H60: -20,157 | I60: -2,596 | J60: 17,861 | K60: -15,903 | L60: -6,703 | M60: 244 | N60: -6,971 | O60: -2,809 | P60: 2,121 | Q60: -2,033 | R60: 4,697 | S60: 4,233 | T60: -88,034 | U60: -117,033
C62: DIFERENCIA ENERO - DICIEMBRE 2022 vs 2021 (PORCENTAJES)
C63: MES | D63: IMPORTACIÓN | H63: EXPORTACIÓN | L63: TRÁNSITO | P63: CABOTAJE | T63: TOTAL BOXES | U63: TOTAL TEUS
D64: 20 pies | F64: 40 pies | H64: 20 pies | J64: 40 pies | L64: 20 pies | N64: 40 pies | P64: 20 pies | R64: 40 pies
D65: full | E65: empty | F65: full | G65: empty | H65: full | I65: empty | J65: full | K65: empty | L65: full | M65: empty | N65: full | O65: empty | P65: full | Q65: empty | R65: full | S65: empty
C66: ENERO | D66: =D30/D12-1 -> -16.4% | E66: =E30/E12-1 -> 14.9% | F66: 16.2% | G66: -58.1% | H66: 5.1% | I66: -31.3% | J66: 6.9% | K66: 13.7% | L66: -18.7% | M66: -61.4% | N66: -8.3% | O66: 20.8% | P66: 109.1% | Q66: -57.3% | R66: 60.9% | S66: -42.6% | T66: =T30/T12-1 -> -1.8% | U66: -0.7%
C67: FEBRERO | D67: =D31/D13-1 -> -11.7% | E67: -8.6% | F67: 16.4% | G67: -22.1% | H67: -29.0% | I67: -28.1% | J67: 0.7% | K67: -18.7% | L67: -36.6% | M67: -74.9% | N67: -28.4% | O67: -28.5% | P67: 16.2% | Q67: -47.9% | R67: 4.7% | S67: -22.6% | T67: =T31/T13-1 -> -7.3% | U67: -5.4%
C68: MARZO | D68: =D32/D14-1 -> -28.0% | E68: -34.0% | F68: 0.4% | G68: -26.7% | H68: -22.0% | I68: -15.3% | J68: -1.8% | K68: -0.2% | L68: -35.4% | M68: -33.0% | N68: -11.1% | O68: -6.4% | P68: 78.2% | Q68: -68.2% | R68: 179.1% | S68: 58.3% | T68: -8.3% | U68: -5.9%
C69: ABRIL | D69: =D33/D15-1 -> -16.2% | E69: 12.7% | F69: 12.2% | G69: -9.5% | H69: -17.0% | I69: -43.9% | J69: -2.4% | K69: 4.2% | L69: 0.7% | M69: -14.0% | N69: 19.1% | O69: 2.3% | P69: 33.9% | Q69: -15.7% | R69: 11.1% | S69: 58.3% | T69: -0.6% | U69: 1.2%
C70: MAYO | D70: =D34/D16-1 -> -20.4% | E70: -36.6% | F70: -6.3% | G70: 79.4% | H70: -4.6% | I70: 10.2% | J70: 15.1% | K70: 9.8% | L70: -7.5% | M70: 72.7% | N70: 2.7% | O70: 81.1% | P70: -0.3% | Q70: -53.8% | R70: 8.1% | S70: 63.5% | T70: 5.8% | U70: 8.3%
C71: JUNIO | D71: =D35/D17-1 -> -21.2% | E71: 23.0% | F71: -4.0% | G71: 2.3% | H71: -0.4% | I71: 59.1% | J71: 8.4% | K71: 37.6% | L71: -19.7% | M71: 147.8% | N71: -1.2% | O71: -18.9% | P71: 262.5% | Q71: -17.5% | R71: 119.6% | S71: 10.2% | T71: 4.7% | U71: 5.3%
C72: JULIO | D72: =D36/D18-1 -> -12.0% | E72: 97.5% | F72: -2.9% | G72: 32.9% | H72: 18.2% | I72: 20.4% | J72: 12.5% | K72: 7.3% | L72: -13.7% | M72: 317.3% | N72: -11.0% | O72: 26.7% | P72: 212.4% | Q72: 52.5% | R72: 67.8% | S72: 77.8% | T72: 9.5% | U72: 9.4%
C73: AGOSTO | D73: =D37/D19-1 -> -30.9% | E73: 122.9% | F73: -21.4% | G73: 33.7% | H73: -8.9% | I73: -8.8% | J73: -2.0% | K73: -16.4% | L73: -7.2% | M73: -68.4% | N73: 13.3% | O73: -20.3% | P73: 94.6% | Q73: 70.7% | R73: 68.2% | S73: 100.3% | T73: -7.2% | U73: -6.7%
C74: SEPTIEMBRE | D74: =D38/D20-1 -> -15.7% | E74: 64.8% | F74: -5.5% | G74: 11.5% | H74: -11.0% | I74: -31.9% | J74: 9.0% | K74: -1.8% | L74: -5.3% | M74: -30.5% | N74: -14.7% | O74: -17.6% | P74: 72.6% | Q74: -21.2% | R74: 38.2% | S74: -35.5% | T74: -1.9% | U74: -1.1%
C75: OCTUBRE | D75: =D39/D21-1 -> -39.7% | E75: 87.0% | F75: -43.1% | G75: 121.7% | H75: -23.3% | I75: -30.1% | J75: -20.5% | K75: -28.3% | L75: -29.5% | M75: 17.5% | N75: -31.8% | O75: 41.1% | P75: -36.6% | Q75: 21.2% | R75: -48.5% | S75: 46.5% | T75: -20.8% | U75: -20.5%
C76: NOVIEMBRE | D76: =D40/D22-1 -> -12.9% | E76: 113.9% | F76: -20.8% | G76: 107.3% | H76: -22.9% | I76: -3.4% | J76: 7.1% | K76: -42.9% | L76: 48.5% | M76: 136.5% | N76: 33.7% | O76: -31.1% | P76: 29.1% | Q76: 102.8% | R76: 59.1% | S76: 15.0% | T76: -1.4% | U76: -1.7%
C77: DICIEMBRE | D77: =D41/D23-1 -> -18.5% | E77: 31.7% | F77: -30.0% | G77: 14.0% | H77: -13.4% | I77: 40.7% | J77: 8.8% | K77: -10.1% | L77: -15.7% | M77: 9.5% | N77: -21.1% | O77: -48.2% | P77: 2.2% | Q77: 34.1% | R77: 2.2% | S77: -48.7% | T77: -10.1% | U77: -10.3%
C78: TOTAL | D78: =+D60/D24 -> -20.6% | E78: 27.5% | F78: -9.0% | G78: 12.5% | H78: -11.7% | I78: -5.5% | J78: 3.1% | K78: -6.3% | L78: -14.3% | M78: 5.8% | N78: -7.3% | O78: -5.6% | P78: 46.4% | Q78: -20.1% | R78: 32.2% | S78: 11.5% | T78: -3.7% | U78: -2.8%

Sheet 2021 VS 2020
C1: IMPO + EXPO (BOXES FULL) | H1: =+(D60+F60+H60+J60)/(+D24+F24+H24+J24) -> 5.9% | J1: INDICADORES ENERO - DICIEMBRE
C2: IMPO + EXPO (TEUs FULL) | H2: =+((D60+H60)+2*(F60+J60))/((D24+H24)+2*(F24+J24)) -> 8.4%
C3: IMPO + EXPO + TRANS + CABOT (BOXES EMPTY) | H3: =+(E60+G60+I60+K60+M60+O60+Q60+S60)/+(E24+G24+I24+K24+M24+O24+Q24+S24) -> -14.4%
C4: TRANSITO (BOXES) | H4: =+(L60+M60+N60+O60)/+(L24+M24+N24+O24) -> 5.1% | J4: PORCENTAJES DE VARIACIÓN 2021 VS. 2020
C5: CABOTAJE (BOXES) | H5: =+(P60+Q60+R60+S60)/(P24+Q24+R24+S24) -> -21.5%
C6: TEUs TOTALES | H6: =+U60/U24 -> 2.0%
C8: 2020 | D8: CANTIDAD CONTENEDORES ENERO - DICIEMBRE 2020 x MES
C9: MES | D9: IMPORTACIÓN | H9: EXPORTACIÓN | L9: TRÁNSITO | P9: CABOTAJE | T9: TOTAL BOXES | U9: TOTAL TEUS
D10: 20 pies | F10: 40 pies | H10: 20 pies | J10: 40 pies | L10: 20 pies | N10: 40 pies | P10: 20 pies | R10: 40 pies
D11: full | E11: empty | F11: full | G11: empty | H11: full | I11: empty | J11: full | K11: empty | L11: full | M11: empty | N11: full | O11: empty | P11: full | Q11: empty | R11: full | S11: empty
C12: ENERO | D12: 17,290 | E12: 6,965 | F12: 34,171 | G12: 23,973 | H12: 15,021 | I12: 3,769 | J12: 43,836 | K12: 20,670 | L12: 4,974 | M12: 153 | N12: 5,664 | O12: 4,039 | P12: 583 | Q12: 2,541 | R12: 1,455 | S12: 5,323 | T12: =SUM(D12:S12) -> 190,427 | U12: =D12+E12+H12+I12+L12+M12+P12+Q12+(2*(F12+G12+J12+K12+N12+O12+R12+S12)) -> 329,558
C13: FEBRERO | D13: 17,600 | E13: 6,450 | F13: 37,832 | G13: 32,979 | H13: 18,353 | I13: 5,397 | J13: 52,818 | K13: 20,632 | L13: 5,893 | M13: 450 | N13: 6,810 | O13: 4,279 | P13: 459 | Q13: 2,693 | R13: 1,180 | S13: 4,925 | T13: =SUM(D13:S13) -> 218,750 | U13: =D13+E13+H13+I13+L13+M13+P13+Q13+(2*(F13+G13+J13+K13+N13+O13+R13+S13)) -> 380,205
C14: MARZO | D14: 15,605 | E14: 6,119 | F14: 33,035 | G14: 34,391 | H14: 16,410 | I14: 2,754 | J14: 58,328 | K14: 10,121 | L14: 3,675 | M14: 373 | N14: 5,000 | O14: 4,849 | P14: 400 | Q14: 1,417 | R14: 1,425 | S14: 3,257 | T14: 197,159 | U14: 347,565
C15: ABRIL | D15: 18,411 | E15: 6,299 | F15: 38,023 | G15: 22,470 | H15: 16,698 | I15: 3,002 | J15: 52,498 | K15: 16,176 | L15: 4,355 | M15: 562 | N15: 5,680 | O15: 7,677 | P15: 293 | Q15: 1,688 | R15: 972 | S15: 4,232 | T15: 199,036 | U15: 346,764
C16: MAYO | D16: 17,776 | E16: 7,157 | F16: 34,092 | G16: 28,470 | H16: 18,089 | I16: 5,891 | J16: 54,632 | K16: 20,011 | L16: 3,891 | M16: 1,114 | N16: 5,603 | O16: 6,527 | P16: 432 | Q16: 1,201 | R16: 1,390 | S16: 3,343 | T16: 209,619 | U16: 363,687
C17: JUNIO | D17: 15,154 | E17: 4,060 | F17: 31,074 | G17: 26,014 | H17: 14,268 | I17: 5,373 | J17: 45,385 | K17: 11,849 | L17: 3,315 | M17: 1,208 | N17: 4,332 | O17: 3,414 | P17: 601 | Q17: 1,212 | R17: 1,524 | S17: 2,717 | T17: =SUM(D17:S17) -> 171,500 | U17: 297,809
C18: JULIO | D18: 17,320 | E18: 3,953 | F18: 37,142 | G18: 25,743 | H18: 17,710 | I18: 3,390 | J18: 51,363 | K18: 12,296 | L18: 3,831 | M18: 476 | N18: 5,410 | O18: 6,143 | P18: 677 | Q18: 1,035 | R18: 1,276 | S18: 3,831 | T18: 191,596 | U18: 334,800
C19: AGOSTO | D19: 17,409 | E19: 4,332 | F19: 37,218 | G19: 19,599 | H19: 17,152 | I19: 4,309 | J19: 51,943 | K19: 15,354 | L19: 4,100 | M19: 381 | N19: 5,854 | O19: 5,964 | P19: 578 | Q19: 1,542 | R19: 1,568 | S19: 3,764 | T19: 191,067 | U19: 332,331
C20: SEPTIEMBRE | D20: 16,614 | E20: 4,242 | F20: 38,208 | G20: 21,127 | H20: 16,776 | I20: 2,381 | J20: 44,204 | K20: 14,205 | L20: 4,308 | M20: 119 | N20: 5,755 | O20: 3,429 | P20: 541 | Q20: 1,454 | R20: 1,550 | S20: 2,017 | T20: 176,930 | U20: 307,425
C21: OCTUBRE | D21: 17,335 | E21: 5,149 | F21: 42,770 | G21: 22,622 | H21: 20,409 | I21: 4,213 | J21: 46,283 | K21: 23,802 | L21: 4,605 | M21: 164 | N21: 6,413 | O21: 5,381 | P21: 218 | Q21: 1,796 | R21: 820 | S21: 4,075 | T21: 206,055 | U21: 358,221
C22: NOVIEMBRE | D22: 16,268 | E22: 6,392 | F22: 42,314 | G22: 26,758 | H22: 18,185 | I22: 2,927 | J22: 45,842 | K22: 18,959 | L22: 4,121 | M22: 84 | N22: 6,528 | O22: 5,691 | P22: 275 | Q22: 1,988 | R22: 842 | S22: 4,715 | T22: 201,889 | U22: 353,538
C23: DICIEMBRE | D23: 18,794 | E23: 3,433 | F23: 51,189 | G23: 17,372 | H23: 15,577 | I23: 1,680 | J23: 59,192 | K23: 19,234 | L23: 3,511 | M23: 109 | N23: 6,194 | O23: 4,787 | P23: 274 | Q23: 521 | R23: 641 | S23: 2,878 | T23: 205,386 | U23: 366,873
C24: TOTAL | D24: =SUM(D12:D23) -> 205,576 | E24: =SUM(E12:E23) -> 64,551 | F24: 457,068 | G24: 301,518 | H24: 204,648 | I24: 45,086 | J24: 606,324 | K24: 203,309 | L24: 50,579 | M24: 5,193 | N24: 69,243 | O24: 62,180 | P24: 5,331 | Q24: 19,088 | R24: 14,643 | S24: 45,077 | T24: 2,359,414 | U24: 4,118,776
C26: 2021 | D26: CANTIDAD CONTENEDORES ENERO - DICIEMBRE 2021 x MES
C27: MES | D27: IMPORTACIÓN | H27: EXPORTACIÓN | L27: TRÁNSITO | P27: CABOTAJE | T27: TOTAL BOXES | U27: TOTAL TEUS
D28: 20 pies | F28: 40 pies | H28: 20 pies | J28: 40 pies | L28: 20 pies | N28: 40 pies | P28: 20 pies | R28: 40 pies
D29: full | E29: empty | F29: full | G29: empty | H29: full | I29: empty | J29: full | K29: empty | L29: full | M29: empty | N29: full | O29: empty | P29: full | Q29: empty | R29: full | S29: empty
C30: ENERO | D30: 17,642 | E30: 3,738 | F30: 46,478 | G30: 18,468 | H30: 12,178 | I30: 2,950 | J30: 44,392 | K30: 17,850 | L30: 3,994 | M30: 448 | N30: 7,250 | O30: 3,363 | P30: 418 | Q30: 2,073 | R30: 938 | S30: 4,661 | T30: =SUM(D30:S30) -> 186,841 | U30: =D30+E30+H30+I30+L30+M30+P30+Q30+(2*(F30+G30+J30+K30+N30+O30+R30+S30)) -> 330,241
C31: FEBRERO | D31: 18,394 | E31: 3,554 | F31: 48,881 | G31: 18,957 | H31: 15,311 | I31: 3,995 | J31: 46,216 | K31: 19,595 | L31: 4,148 | M31: 601 | N31: 7,048 | O31: 4,981 | P31: 390 | Q31: 909 | R31: 970 | S31: 6,233 | T31: =SUM(D31:S31) -> 200,183 | U31: =D31+E31+H31+I31+L31+M31+P31+Q31+(2*(F31+G31+J31+K31+N31+O31+R31+S31)) -> 353,064
C32: MARZO | D32: 18,599 | E32: 5,192 | F32: 50,297 | G32: 25,454 | H32: 15,609 | I32: 3,850 | J32: 59,547 | K32: 21,818 | L32: 5,215 | M32: 364 | N32: 9,096 | O32: 5,872 | P32: 344 | Q32: 1,796 | R32: 972 | S32: 3,990 | T32: 228,015 | U32: 405,061
C33: ABRIL | D33: 15,552 | E33: 3,069 | F33: 41,743 | G33: 23,408 | H33: 13,946 | I33: 5,399 | J33: 56,534 | K33: 21,368 | L33: 3,426 | M33: 336 | N33: 5,833 | O33: 3,773 | P33: 387 | Q33: 670 | R33: 1,045 | S33: 3,162 | T33: 199,651 | U33: 356,517
C34: MAYO | D34: 17,244 | E34: 4,453 | F34: 50,930 | G34: 8,709 | H34: 15,315 | I34: 5,372 | J34: 47,606 | K34: 19,450 | L34: 4,038 | M34: 176 | N34: 8,022 | O34: 2,808 | P34: 382 | Q34: 604 | R34: 1,389 | S34: 2,000 | T34: 188,498 | U34: 329,412
C35: JUNIO | D35: 15,873 | E35: 2,705 | F35: 45,730 | G35: 16,005 | H35: 14,223 | I35: 4,797 | J35: 47,697 | K35: 15,687 | L35: 3,864 | M35: 186 | N35: 7,614 | O35: 4,410 | P35: 176 | Q35: 365 | R35: 718 | S35: 1,562 | T35: =SUM(D35:S35) -> 181,612 | U35: 321,035
C36: JULIO | D36: 15,092 | E36: 1,846 | F36: 48,317 | G36: 14,751 | H36: 11,544 | I36: 4,012 | J36: 42,297 | K36: 17,720 | L36: 3,769 | M36: 185 | N36: 7,643 | O36: 3,759 | P36: 234 | Q36: 648 | R36: 1,101 | S36: 2,426 | T36: 175,344 | U36: 313,358
C37: AGOSTO | D37: 17,497 | E37: 1,811 | F37: 57,890 | G37: 14,798 | H37: 14,345 | I37: 4,486 | J37: 48,908 | K37: 23,897 | L37: 3,182 | M37: 386 | N37: 6,977 | O37: 4,898 | P37: 242 | Q37: 321 | R37: 871 | S37: 1,975 | T37: 202,484 | U37: 362,698
C38: SEPTIEMBRE | D38: 14,279 | E38: 3,162 | F38: 48,104 | G38: 17,323 | H38: 14,913 | I38: 4,218 | J38: 42,998 | K38: 20,704 | L38: 3,738 | M38: 453 | N38: 9,187 | O38: 4,152 | P38: 266 | Q38: 1,028 | R38: 1,221 | S38: 3,626 | T38: 189,372 | U38: 336,687
C39: OCTUBRE | D39: 16,794 | E39: 2,720 | F39: 61,137 | G39: 10,920 | H39: 14,546 | I39: 3,285 | J39: 49,614 | K39: 25,083 | L39: 4,367 | M39: 206 | N39: 10,502 | O39: 2,976 | P39: 796 | Q39: 546 | R39: 2,592 | S39: 1,285 | T39: 207,369 | U39: 371,478
C40: NOVIEMBRE | D40: 14,477 | E40: 2,810 | F40: 52,824 | G40: 13,068 | H40: 15,260 | I40: 2,626 | J40: 41,285 | K40: 25,755 | L40: 2,778 | M40: 340 | N40: 6,386 | O40: 3,758 | P40: 344 | Q40: 653 | R40: 1,122 | S40: 2,683 | T40: 186,169 | U40: 333,050
C41: DICIEMBRE | D41: 15,602 | E41: 3,437 | F41: 57,230 | G41: 18,497 | H41: 15,552 | I41: 2,514 | J41: 53,997 | K41: 21,878 | L41: 4,231 | M41: 504 | N41: 10,171 | O41: 5,349 | P41: 594 | Q41: 504 | R41: 1,647 | S41: 3,200 | T41: 214,907 | U41: 386,876
C42: TOTAL | D42: =SUM(D30:D41) -> 197,045 | E42: =SUM(E30:E41) -> 38,497 | F42: 609,561 | G42: 200,358 | H42: 172,742 | I42: 47,504 | J42: 581,091 | K42: 250,805 | L42: 46,750 | M42: 4,185 | N42: 95,729 | O42: 50,099 | P42: 4,573 | Q42: 10,117 | R42: 14,586 | S42: 36,803 | T42: 2,360,445 | U42: 4,199,477
C44: DIFERENCIA ENERO - DICIEMBRE 2021 vs 2020 (UNIDADES)
C45: MES | D45: IMPORTACIÓN | H45: EXPORTACIÓN | L45: TRÁNSITO | P45: CABOTAJE | T45: TOTAL BOXES | U45: TOTAL TEUS
D46: 20 pies | F46: 40 pies | H46: 20 pies | J46: 40 pies | L46: 20 pies | N46: 40 pies | P46: 20 pies | R46: 40 pies
D47: full | E47: empty | F47: full | G47: empty | H47: full | I47: empty | J47: full | K47: empty | L47: full | M47: empty | N47: full | O47: empty | P47: full | Q47: empty | R47: full | S47: empty
C48: ENERO | D48: =D30-D12 -> 352 | E48: =E30-E12 -> -3,227 | F48: 12,307 | G48: -5,505 | H48: -2,843 | I48: -819 | J48: 556 | K48: -2,820 | L48: -980 | M48: 295 | N48: 1,586 | O48: -676 | P48: -165 | Q48: -468 | R48: -517 | S48: -662 | T48: -3,586 | U48: 683
C49: FEBRERO | D49: =D31-D13 -> 794 | E49: -2,896 | F49: 11,049 | G49: -14,022 | H49: -3,042 | I49: -1,402 | J49: -6,602 | K49: -1,037 | L49: -1,745 | M49: 151 | N49: 238 | O49: 702 | P49: -69 | Q49: -1,784 | R49: -210 | S49: 1,308 | T49: -18,567 | U49: -27,141
C50: MARZO | D50: 2,994 | E50: -927 | F50: 17,262 | G50: -8,937 | H50: -801 | I50: 1,096 | J50: 1,219 | K50: 11,697 | L50: 1,540 | M50: -9 | N50: 4,096 | O50: 1,023 | P50: -56 | Q50: 379 | R50: -453 | S50: 733 | T50: 30,856 | U50: 57,496
C51: ABRIL | D51: -2,859 | E51: -3,230 | F51: 3,720 | G51: 938 | H51: -2,752 | I51: 2,397 | J51: 4,036 | K51: 5,192 | L51: -929 | M51: -226 | N51: 153 | O51: -3,904 | P51: 94 | Q51: -1,018 | R51: 73 | S51: -1,070 | T51: 615 | U51: 9,753
C52: MAYO | D52: -532 | E52: -2,704 | F52: 16,838 | G52: -19,761 | H52: -2,774 | I52: -519 | J52: -7,026 | K52: -561 | L52: 147 | M52: -938 | N52: 2,419 | O52: -3,719 | P52: -50 | Q52: -597 | R52: -1 | S52: -1,343 | T52: -21,121 | U52: -34,275
C53: JUNIO | D53: 719 | E53: -1,355 | F53: 14,656 | G53: -10,009 | H53: -45 | I53: -576 | J53: 2,312 | K53: 3,838 | L53: 549 | M53: -1,022 | N53: 3,282 | O53: 996 | P53: -425 | Q53: -847 | R53: -806 | S53: -1,155 | T53: 10,112 | U53: 23,226
C54: JULIO | D54: -2,228 | E54: -2,107 | F54: 11,175 | G54: -10,992 | H54: -6,166 | I54: 622 | J54: -9,066 | K54: 5,424 | L54: -62 | M54: -291 | N54: 2,233 | O54: -2,384 | P54: -443 | Q54: -387 | R54: -175 | S54: -1,405 | T54: -16,252 | U54: -21,442
C55: AGOSTO | D55: 88 | E55: -2,521 | F55: 20,672 | G55: -4,801 | H55: -2,807 | I55: 177 | J55: -3,035 | K55: 8,543 | L55: -918 | M55: 5 | N55: 1,123 | O55: -1,066 | P55: -336 | Q55: -1,221 | R55: -697 | S55: -1,789 | T55: 11,417 | U55: 30,367
C56: SEPTIEMBRE | D56: -2,335 | E56: -1,080 | F56: 9,896 | G56: -3,804 | H56: -1,863 | I56: 1,837 | J56: -1,206 | K56: 6,499 | L56: -570 | M56: 334 | N56: 3,432 | O56: 723 | P56: -275 | Q56: -426 | R56: -329 | S56: 1,609 | T56: 12,442 | U56: 29,262
C57: OCTUBRE | D57: -541 | E57: -2,429 | F57: 18,367 | G57: -11,702 | H57: -5,863 | I57: -928 | J57: 3,331 | K57: 1,281 | L57: -238 | M57: 42 | N57: 4,089 | O57: -2,405 | P57: 578 | Q57: -1,250 | R57: 1,772 | S57: -2,790 | T57: 1,314 | U57: 13,257
C58: NOVIEMBRE | D58: -1,791 | E58: -3,582 | F58: 10,510 | G58: -13,690 | H58: -2,925 | I58: -301 | J58: -4,557 | K58: 6,796 | L58: -1,343 | M58: 256 | N58: -142 | O58: -1,933 | P58: 69 | Q58: -1,335 | R58: 280 | S58: -2,032 | T58: -15,720 | U58: -20,488
C59: DICIEMBRE | D59: -3,192 | E59: 4 | F59: 6,041 | G59: 1,125 | H59: -25 | I59: 834 | J59: -5,195 | K59: 2,644 | L59: 720 | M59: 395 | N59: 3,977 | O59: 562 | P59: 320 | Q59: -17 | R59: 1,006 | S59: 322 | T59: 9,521 | U59: 20,003
C60: TOTAL | D60: -8,531 | E60: -26,054 | F60: 152,493 | G60: -101,160 | H60: -31,906 | I60: 2,418 | J60: -25,233 | K60: 47,496 | L60: -3,829 | M60: -1,008 | N60: 26,486 | O60: -12,081 | P60: -758 | Q60: -8,971 | R60: -57 | S60: -8,274 | T60: 1,031 | U60: 80,701
C62: DIFERENCIA ENERO - DICIEMBRE 2021 vs 2020 (PORCENTAJES)
C63: MES | D63: IMPORTACIÓN | H63: EXPORTACIÓN | L63: TRÁNSITO | P63: CABOTAJE | T63: TOTAL BOXES | U63: TOTAL TEUS
D64: 20 pies | F64: 40 pies | H64: 20 pies | J64: 40 pies | L64: 20 pies | N64: 40 pies | P64: 20 pies | R64: 40 pies
D65: full | E65: empty | F65: full | G65: empty | H65: full | I65: empty | J65: full | K65: empty | L65: full | M65: empty | N65: full | O65: empty | P65: full | Q65: empty | R65: full | S65: empty
C66: ENERO | D66: =D30/D12-1 -> 2.0% | E66: =E30/E12-1 -> -46.3% | F66: 36.0% | G66: -23.0% | H66: -18.9% | I66: -21.7% | J66: 1.3% | K66: -13.6% | L66: -19.7% | M66: 192.8% | N66: 28.0% | O66: -16.7% | P66: -28.3% | Q66: -18.4% | R66: -35.5% | S66: -12.4% | T66: -1.9% | U66: 0.2%
C67: FEBRERO | D67: =D31/D13-1 -> 4.5% | E67: -44.9% | F67: 29.2% | G67: -42.5% | H67: -16.6% | I67: -26.0% | J67: -12.5% | K67: -5.0% | L67: -29.6% | M67: 33.6% | N67: 3.5% | O67: 16.4% | P67: -15.0% | Q67: -66.2% | R67: -17.8% | S67: 26.6% | T67: -8.5% | U67: -7.1%
C68: MARZO | D68: 19.2% | E68: -15.1% | F68: 52.3% | G68: -26.0% | H68: -4.9% | I68: 39.8% | J68: 2.1% | K68: 115.6% | L68: 41.9% | M68: -2.4% | N68: 81.9% | O68: 21.1% | P68: -14.0% | Q68: 26.7% | R68: -31.8% | S68: 22.5% | T68: 15.7% | U68: 16.5%
C69: ABRIL | D69: -15.5% | E69: -51.3% | F69: 9.8% | G69: 4.2% | H69: -16.5% | I69: 79.8% | J69: 7.7% | K69: 32.1% | L69: -21.3% | M69: -40.2% | N69: 2.7% | O69: -50.9% | P69: 32.1% | Q69: -60.3% | R69: 7.5% | S69: -25.3% | T69: 0.3% | U69: 2.8%
C70: MAYO | D70: -3.0% | E70: -37.8% | F70: 49.4% | G70: -69.4% | H70: -15.3% | I70: -8.8% | J70: -12.9% | K70: -2.8% | L70: 3.8% | M70: -84.2% | N70: 43.2% | O70: -57.0% | P70: -11.6% | Q70: -49.7% | R70: -0.1% | S70: -40.2% | T70: -10.1% | U70: -9.4%
C71: JUNIO | D71: 4.7% | E71: -33.4% | F71: 47.2% | G71: -38.5% | H71: -0.3% | I71: -10.7% | J71: 5.1% | K71: 32.4% | L71: 16.6% | M71: -84.6% | N71: 75.8% | O71: 29.2% | P71: -70.7% | Q71: -69.9% | R71: -52.9% | S71: -42.5% | T71: 5.9% | U71: 7.8%
C72: JULIO | D72: -12.9% | E72: -53.3% | F72: 30.1% | G72: -42.7% | H72: -34.8% | I72: 18.3% | J72: -17.7% | K72: 44.1% | L72: -1.6% | M72: -61.1% | N72: 41.3% | O72: -38.8% | P72: -65.4% | Q72: -37.4% | R72: -13.7% | S72: -36.7% | T72: -8.5% | U72: -6.4%
C73: AGOSTO | D73: 0.5% | E73: -58.2% | F73: 55.5% | G73: -24.5% | H73: -16.4% | I73: 4.1% | J73: -5.8% | K73: 55.6% | L73: -22.4% | M73: 1.3% | N73: 19.2% | O73: -17.9% | P73: -58.1% | Q73: -79.2% | R73: -44.5% | S73: -47.5% | T73: 6.0% | U73: 9.1%
C74: SEPTIEMBRE | D74: -14.1% | E74: -25.5% | F74: 25.9% | G74: -18.0% | H74: -11.1% | I74: 77.2% | J74: -2.7% | K74: 45.8% | L74: -13.2% | M74: 280.7% | N74: 59.6% | O74: 21.1% | P74: -50.8% | Q74: -29.3% | R74: -21.2% | S74: 79.8% | T74: 7.0% | U74: 9.5%
C75: OCTUBRE | D75: -3.1% | E75: -47.2% | F75: 42.9% | G75: -51.7% | H75: -28.7% | I75: -22.0% | J75: 7.2% | K75: 5.4% | L75: -5.2% | M75: 25.6% | N75: 63.8% | O75: -44.7% | P75: 265.1% | Q75: -69.6% | R75: 216.1% | S75: -68.5% | T75: 0.6% | U75: 3.7%
C76: NOVIEMBRE | D76: -11.0% | E76: -56.0% | F76: 24.8% | G76: -51.2% | H76: -16.1% | I76: -10.3% | J76: -9.9% | K76: 35.8% | L76: -32.6% | M76: 304.8% | N76: -2.2% | O76: -34.0% | P76: 25.1% | Q76: -67.2% | R76: 33.3% | S76: -43.1% | T76: -7.8% | U76: -5.8%
C77: DICIEMBRE | D77: -17.0% | E77: 0.1% | F77: 11.8% | G77: 6.5% | H77: -0.2% | I77: 49.6% | J77: -8.8% | K77: 13.7% | L77: 20.5% | M77: 362.4% | N77: 64.2% | O77: 11.7% | P77: 116.8% | Q77: -3.3% | R77: 156.9% | S77: 11.2% | T77: 4.6% | U77: 5.5%
C78: TOTAL | D78: =+D60/D24 -> -4.1% | E78: -40.4% | F78: 33.4% | G78: -33.6% | H78: -15.6% | I78: 5.4% | J78: -4.2% | K78: 23.4% | L78: -7.6% | M78: -19.4% | N78: 38.3% | O78: -19.4% | P78: -14.2% | Q78: -47.0% | R78: -0.4% | S78: -18.4% | T78: 0.0% | U78: 2.0%

Sheet 2020 VS 2019
D1: IMPO + EXPO (BOXES FULL) | I1: =+(E60+G60+I60+K60)/(+E24+G24+I24+K24) -> -4.8% | K1: INDICADORES ENERO - DICIEMBRE
D2: IMPO + EXPO (TEUs FULL) | I2: =+((E60+I60)+2*(G60+K60))/((E24+I24)+2*(G24+K24)) -> -3.8%
D3: IMPO + EXPO + TRANS + CABOT (BOXES EMPTY) | I3: =+(F60+H60+J60+L60+N60+P60+R60+T60)/+(F24+H24+J24+L24+N24+P24+R24+T24) -> -14.8%
D4: TRANSITO (BOXES) | I4: =+(M60+N60+O60+P60)/+(M24+N24+O24+P24) -> -18.6% | K4: PORCENTAJES DE VARIACIÓN 2019 VS. 2020
D5: CABOTAJE (BOXES) | I5: =+(Q60+R60+S60+T60)/(Q24+R24+S24+T24) -> -13.3%
D6: TEUs TOTALES | I6: =+V60/V24 -> -8.1%
D8: 2019 | E8: CANTIDAD CONTENEDORES ENERO - DICIEMBRE 2019 x MES
D9: MES | E9: IMPORTACIÓN | I9: EXPORTACIÓN | M9: TRÁNSITO | Q9: CABOTAJE | U9: TOTAL BOXES | V9: TOTAL TEUS
E10: 20 pies | G10: 40 pies | I10: 20 pies | K10: 40 pies | M10: 20 pies | O10: 40 pies | Q10: 20 pies | S10: 40 pies
E11: full | F11: empty | G11: full | H11: empty | I11: full | J11: empty | K11: full | L11: empty | M11: full | N11: empty | O11: full | P11: empty | Q11: full | R11: empty | S11: full | T11: empty
D12: ENERO | E12: 20,252 | F12: 6,561 | G12: 42,633 | H12: 22,486 | I12: 16,436 | J12: 8,096 | K12: 45,687 | L12: 33,172 | M12: 5,107 | N12: 1,081 | O12: 6,482 | P12: 8,450 | Q12: 439 | R12: 2,873 | S12: 1,324 | T12: 4,978 | U12: =SUM(E12:T12) -> 226,057 | V12: =E12+F12+I12+J12+M12+N12+Q12+R12+(2*(G12+H12+K12+L12+O12+P12+S12+T12)) -> 391,270
D13: FEBRERO | E13: 19,229 | F13: 6,803 | G13: 39,531 | H13: 27,187 | I13: 16,508 | J13: 6,619 | K13: 46,565 | L13: 24,620 | M13: 4,378 | N13: 911 | O13: 5,702 | P13: 8,113 | Q13: 611 | R13: 1,999 | S13: 1,345 | T13: 2,643 | U13: =SUM(E13:T13) -> 212,764 | V13: =E13+F13+I13+J13+M13+N13+Q13+R13+(2*(G13+H13+K13+L13+O13+P13+S13+T13)) -> 368,470
D14: MARZO | E14: 19,887 | F14: 5,051 | G14: 42,160 | H14: 32,515 | I14: 19,506 | J14: 5,663 | K14: 62,564 | L14: 20,128 | M14: 3,644 | N14: 977 | O14: 5,698 | P14: 8,483 | Q14: 639 | R14: 2,111 | S14: 1,256 | T14: 4,187 | U14: 234,469 | V14: 411,459
D15: ABRIL | E15: 20,405 | F15: 6,114 | G15: 38,601 | H15: 30,426 | I15: 19,444 | J15: 5,658 | K15: 55,421 | L15: 26,450 | M15: 5,294 | N15: 1,104 | O15: 6,685 | P15: 7,146 | Q15: 566 | R15: 2,191 | S15: 1,370 | T15: 3,364 | U15: 230,239 | V15: 399,703
D16: MAYO | E16: 19,182 | F16: 6,671 | G16: 39,884 | H16: 24,639 | I16: 18,178 | J16: 5,576 | K16: 51,657 | L16: 21,318 | M16: 5,249 | N16: 947 | O16: 7,033 | P16: 6,480 | Q16: 787 | R16: 3,083 | S16: 1,771 | T16: 4,096 | U16: 216,551 | V16: 373,429
D17: JUNIO | E17: 20,054 | F17: 7,666 | G17: 42,456 | H17: 22,507 | I17: 21,293 | J17: 4,078 | K17: 52,193 | L17: 20,817 | M17: 5,490 | N17: 1,842 | O17: 6,736 | P17: 9,369 | Q17: 712 | R17: 2,298 | S17: 1,626 | T17: 3,496 | U17: =SUM(E17:T17) -> 222,633 | V17: 381,833
D18: JULIO | E18: 20,894 | F18: 5,586 | G18: 43,637 | H18: 22,238 | I18: 19,318 | J18: 4,559 | K18: 49,856 | L18: 24,955 | M18: 5,236 | N18: 693 | O18: 6,994 | P18: 4,549 | Q18: 502 | R18: 2,260 | S18: 1,535 | T18: 2,112 | U18: =SUM(E18:T18) -> 214,924 | V18: =E18+F18+I18+J18+M18+N18+Q18+R18+(2*(G18+H18+K18+L18+O18+P18+S18+T18)) -> 370,801
D19: AGOSTO | E19: 20,769 | F19: 7,578 | G19: 45,224 | H19: 21,763 | I19: 20,076 | J19: 6,076 | K19: 48,728 | L19: 26,704 | M19: 5,849 | N19: 470 | O19: 7,839 | P19: 5,154 | Q19: 556 | R19: 2,946 | S19: 1,493 | T19: 4,031 | U19: 225,256 | V19: 386,193
D20: SEPTIEMBRE | E20: 19,999 | F20: 5,502 | G20: 44,235 | H20: 23,800 | I20: 17,473 | J20: 5,054 | K20: 42,861 | L20: 23,679 | M20: 5,276 | N20: 449 | O20: 7,193 | P20: 5,643 | Q20: 554 | R20: 2,155 | S20: 1,764 | T20: 4,228 | U20: 209,865 | V20: 363,267
D21: OCTUBRE | E21: 16,770 | F21: 6,258 | G21: 37,691 | H21: 19,383 | I21: 14,204 | J21: 4,426 | K21: 34,234 | L21: 18,622 | M21: 5,654 | N21: 49 | O21: 8,117 | P21: 3,323 | Q21: 332 | R21: 2,708 | S21: 1,156 | T21: 2,697 | U21: 175,624 | V21: 300,847
D22: NOVIEMBRE | E22: 19,142 | F22: 5,310 | G22: 41,303 | H22: 22,392 | I22: 19,368 | J22: 4,122 | K22: 44,716 | L22: 18,055 | M22: 4,584 | N22: 734 | O22: 7,113 | P22: 5,071 | Q22: 533 | R22: 1,951 | S22: 1,087 | T22: 4,048 | U22: 199,529 | V22: 343,315
D23: DICIEMBRE | E23: 19,372 | F23: 6,275 | G23: 40,974 | H23: 24,535 | I23: 20,565 | J23: 3,867 | K23: 56,264 | L23: 26,567 | M23: 5,295 | N23: 203 | O23: 7,786 | P23: 4,272 | Q23: 733 | R23: 1,900 | S23: 1,887 | T23: 4,057 | U23: 224,552 | V23: 390,894
D24: TOTAL | E24: =SUM(E12:E23) -> 235,955 | F24: =SUM(F12:F23) -> 75,375 | G24: 498,329 | H24: 293,871 | I24: 222,369 | J24: 63,794 | K24: 590,746 | L24: 285,087 | M24: 61,056 | N24: 9,460 | O24: 83,378 | P24: 76,053 | Q24: 6,964 | R24: 28,475 | S24: 17,614 | T24: 43,937 | U24: 2,592,463 | V24: 4,481,479
D26: 2020 | E26: CANTIDAD CONTENEDORES ENERO - DICIEMBRE 2020 x MES
D27: MES | E27: IMPORTACIÓN | I27: EXPORTACIÓN | M27: TRÁNSITO | Q27: CABOTAJE | U27: TOTAL BOXES | V27: TOTAL TEUS
E28: 20 pies | G28: 40 pies | I28: 20 pies | K28: 40 pies | M28: 20 pies | O28: 40 pies | Q28: 20 pies | S28: 40 pies
E29: full | F29: empty | G29: full | H29: empty | I29: full | J29: empty | K29: full | L29: empty | M29: full | N29: empty | O29: full | P29: empty | Q29: full | R29: empty | S29: full | T29: empty
D30: ENERO | E30: 17,290 | F30: 6,965 | G30: 34,171 | H30: 23,973 | I30: 15,021 | J30: 3,769 | K30: 43,836 | L30: 20,670 | M30: 4,974 | N30: 153 | O30: 5,664 | P30: 4,039 | Q30: 583 | R30: 2,541 | S30: 1,455 | T30: 5,323 | U30: =SUM(E30:T30) -> 190,427 | V30: =E30+F30+I30+J30+M30+N30+Q30+R30+(2*(G30+H30+K30+L30+O30+P30+S30+T30)) -> 329,558
D31: FEBRERO | E31: 17,600 | F31: 6,450 | G31: 37,832 | H31: 32,979 | I31: 18,353 | J31: 5,397 | K31: 52,818 | L31: 20,632 | M31: 5,893 | N31: 450 | O31: 6,810 | P31: 4,279 | Q31: 459 | R31: 2,693 | S31: 1,180 | T31: 4,925 | U31: =SUM(E31:T31) -> 218,750 | V31: =E31+F31+I31+J31+M31+N31+Q31+R31+(2*(G31+H31+K31+L31+O31+P31+S31+T31)) -> 380,205
D32: MARZO | E32: 15,605 | F32: 6,119 | G32: 33,035 | H32: 34,391 | I32: 16,410 | J32: 2,754 | K32: 58,328 | L32: 10,121 | M32: 3,675 | N32: 373 | O32: 5,000 | P32: 4,849 | Q32: 400 | R32: 1,417 | S32: 1,425 | T32: 3,257 | U32: 197,159 | V32: 347,565
D33: ABRIL | E33: 18,411 | F33: 6,299 | G33: 38,023 | H33: 22,470 | I33: 16,698 | J33: 3,002 | K33: 52,498 | L33: 16,176 | M33: 4,355 | N33: 562 | O33: 5,680 | P33: 7,677 | Q33: 293 | R33: 1,688 | S33: 972 | T33: 4,232 | U33: 199,036 | V33: 346,764
D34: MAYO | E34: 17,776 | F34: 7,157 | G34: 34,092 | H34: 28,470 | I34: 18,089 | J34: 5,891 | K34: 54,632 | L34: 20,011 | M34: 3,891 | N34: 1,114 | O34: 5,603 | P34: 6,527 | Q34: 432 | R34: 1,201 | S34: 1,390 | T34: 3,343 | U34: 209,619 | V34: 363,687
D35: JUNIO | E35: 15,154 | F35: 4,060 | G35: 31,074 | H35: 26,014 | I35: 14,268 | J35: 5,373 | K35: 45,385 | L35: 11,849 | M35: 3,315 | N35: 1,208 | O35: 4,332 | P35: 3,414 | Q35: 601 | R35: 1,212 | S35: 1,524 | T35: 2,717 | U35: =SUM(E35:T35) -> 171,500 | V35: 297,809
D36: JULIO | E36: 17,320 | F36: 3,953 | G36: 37,142 | H36: 25,743 | I36: 17,710 | J36: 3,390 | K36: 51,363 | L36: 12,296 | M36: 3,831 | N36: 476 | O36: 5,410 | P36: 6,143 | Q36: 677 | R36: 1,035 | S36: 1,276 | T36: 3,831 | U36: =SUM(E36:T36) -> 191,596 | V36: =E36+F36+I36+J36+M36+N36+Q36+R36+(2*(G36+H36+K36+L36+O36+P36+S36+T36)) -> 334,800
D37: AGOSTO | E37: 17,409 | F37: 4,332 | G37: 37,218 | H37: 19,599 | I37: 17,152 | J37: 4,309 | K37: 51,943 | L37: 15,354 | M37: 4,100 | N37: 381 | O37: 5,854 | P37: 5,964 | Q37: 578 | R37: 1,542 | S37: 1,568 | T37: 3,764 | U37: 191,067 | V37: 332,331
D38: SEPTIEMBRE | E38: 16,614 | F38: 4,242 | G38: 38,208 | H38: 21,127 | I38: 16,776 | J38: 2,381 | K38: 44,204 | L38: 14,205 | M38: 4,308 | N38: 119 | O38: 5,755 | P38: 3,429 | Q38: 541 | R38: 1,454 | S38: 1,550 | T38: 2,017 | U38: 176,930 | V38: 307,425
D39: OCTUBRE | E39: 17,335 | F39: 5,149 | G39: 42,770 | H39: 22,622 | I39: 20,409 | J39: 4,213 | K39: 46,283 | L39: 23,802 | M39: 4,605 | N39: 164 | O39: 6,413 | P39: 5,381 | Q39: 218 | R39: 1,796 | S39: 820 | T39: 4,075 | U39: 206,055 | V39: 358,221
D40: NOVIEMBRE | E40: 16,268 | F40: 6,392 | G40: 42,314 | H40: 26,758 | I40: 18,185 | J40: 2,927 | K40: 45,842 | L40: 18,959 | M40: 4,121 | N40: 84 | O40: 6,528 | P40: 5,691 | Q40: 275 | R40: 1,988 | S40: 842 | T40: 4,715 | U40: 201,889 | V40: 353,538
D41: DICIEMBRE | E41: 18,794 | F41: 3,433 | G41: 51,189 | H41: 17,372 | I41: 15,577 | J41: 1,680 | K41: 59,192 | L41: 19,234 | M41: 3,511 | N41: 109 | O41: 6,194 | P41: 4,787 | Q41: 274 | R41: 521 | S41: 641 | T41: 2,878 | U41: 205,386 | V41: 366,873
D42: TOTAL | E42: =SUM(E30:E41) -> 205,576 | F42: =SUM(F30:F41) -> 64,551 | G42: 457,068 | H42: 301,518 | I42: 204,648 | J42: 45,086 | K42: 606,324 | L42: 203,309 | M42: 50,579 | N42: 5,193 | O42: 69,243 | P42: 62,180 | Q42: 5,331 | R42: 19,088 | S42: 14,643 | T42: 45,077 | U42: 2,359,414 | V42: 4,118,776
D44: DIFERENCIA ENERO - DICIEMBRE 2020 vs 2019 (UNIDADES)
D45: MES | E45: IMPORTACIÓN | I45: EXPORTACIÓN | M45: TRÁNSITO | Q45: CABOTAJE | U45: TOTAL BOXES | V45: TOTAL TEUS
E46: 20 pies | G46: 40 pies | I46: 20 pies | K46: 40 pies | M46: 20 pies | O46: 40 pies | Q46: 20 pies | S46: 40 pies
E47: full | F47: empty | G47: full | H47: empty | I47: full | J47: empty | K47: full | L47: empty | M47: full | N47: empty | O47: full | P47: empty | Q47: full | R47: empty | S47: full | T47: empty
D48: ENERO | E48: =E30-E12 -> -2,962 | F48: =F30-F12 -> 404 | G48: -8,462 | H48: 1,487 | I48: -1,415 | J48: -4,327 | K48: -1,851 | L48: -12,502 | M48: -133 | N48: -928 | O48: -818 | P48: -4,411 | Q48: 144 | R48: -332 | S48: 131 | T48: 345 | U48: -35,630 | V48: -61,712
D49: FEBRERO | E49: =E31-E13 -> -1,629 | F49: -353 | G49: -1,699 | H49: 5,792 | I49: 1,845 | J49: -1,222 | K49: 6,253 | L49: -3,988 | M49: 1,515 | N49: -461 | O49: 1,108 | P49: -3,834 | Q49: -152 | R49: 694 | S49: -165 | T49: 2,282 | U49: 5,986 | V49: 11,735
D50: MARZO | E50: =E32-E14 -> -4,282 | F50: 1,068 | G50: -9,125 | H50: 1,876 | I50: -3,096 | J50: -2,909 | K50: -4,236 | L50: -10,007 | M50: 31 | N50: -604 | O50: -698 | P50: -3,634 | Q50: -239 | R50: -694 | S50: 170 | T50: -930 | U50: -37,310 | V50: -63,894
D51: ABRIL | E51: =E33-E15 -> -1,994 | F51: 185 | G51: -578 | H51: -7,956 | I51: -2,746 | J51: -2,656 | K51: -2,923 | L51: -10,274 | M51: -939 | N51: -542 | O51: -1,005 | P51: 531 | Q51: -273 | R51: -503 | S51: -398 | T51: 868 | U51: -31,203 | V51: -52,939
D52: MAYO | E52: =E34-E16 -> -1,406 | F52: 486 | G52: -5,792 | H52: 3,831 | I52: -89 | J52: 315 | K52: 2,975 | L52: -1,307 | M52: -1,358 | N52: 167 | O52: -1,430 | P52: 47 | Q52: -355 | R52: -1,882 | S52: -381 | T52: -753 | U52: -6,932 | V52: -9,742
D53: JUNIO | E53: =E35-E17 -> -4,900 | F53: -3,606 | G53: -11,382 | H53: 3,507 | I53: -7,025 | J53: 1,295 | K53: -6,808 | L53: -8,968 | M53: -2,175 | N53: -634 | O53: -2,404 | P53: -5,955 | Q53: -111 | R53: -1,086 | S53: -102 | T53: -779 | U53: -51,133 | V53: -84,024
D54: JULIO | E54: =E36-E18 -> -3,574 | F54: -1,633 | G54: -6,495 | H54: 3,505 | I54: -1,608 | J54: -1,169 | K54: 1,507 | L54: -12,659 | M54: -1,405 | N54: -217 | O54: -1,584 | P54: 1,594 | Q54: 175 | R54: -1,225 | S54: -259 | T54: 1,719 | U54: -23,328 | V54: -36,001
D55: AGOSTO | E55: =E37-E19 -> -3,360 | F55: -3,246 | G55: -8,006 | H55: -2,164 | I55: -2,924 | J55: -1,767 | K55: 3,215 | L55: -11,350 | M55: -1,749 | N55: -89 | O55: -1,985 | P55: 810 | Q55: 22 | R55: -1,404 | S55: 75 | T55: -267 | U55: -34,189 | V55: -53,862
D56: SEPTIEMBRE | E56: =E38-E20 -> -3,385 | F56: -1,260 | G56: -6,027 | H56: -2,673 | I56: -697 | J56: -2,673 | K56: 1,343 | L56: -9,474 | M56: -968 | N56: -330 | O56: -1,438 | P56: -2,214 | Q56: -13 | R56: -701 | S56: -214 | T56: -2,211 | U56: -32,935 | V56: -55,842
D57: OCTUBRE | E57: =E39-E21 -> 565 | F57: -1,109 | G57: 5,079 | H57: 3,239 | I57: 6,205 | J57: -213 | K57: 12,049 | L57: 5,180 | M57: -1,049 | N57: 115 | O57: -1,704 | P57: 2,058 | Q57: -114 | R57: -912 | S57: -336 | T57: 1,378 | U57: 30,431 | V57: 57,374
D58: NOVIEMBRE | E58: =E40-E22 -> -2,874 | F58: 1,082 | G58: 1,011 | H58: 4,366 | I58: -1,183 | J58: -1,195 | K58: 1,126 | L58: 904 | M58: -463 | N58: -650 | O58: -585 | P58: 620 | Q58: -258 | R58: 37 | S58: -245 | T58: 667 | U58: 2,360 | V58: 10,224
D59: DICIEMBRE | E59: =E41-E23 -> -578 | F59: -2,842 | G59: 10,215 | H59: -7,163 | I59: -4,988 | J59: -2,187 | K59: 2,928 | L59: -7,333 | M59: -1,784 | N59: -94 | O59: -1,592 | P59: 515 | Q59: -459 | R59: -1,379 | S59: -1,246 | T59: -1,179 | U59: -19,166 | V59: -24,021
D60: TOTAL | E60: =E42-E24 -> -30,379 | F60: -10,824 | G60: -41,261 | H60: 7,647 | I60: -17,721 | J60: -18,708 | K60: 15,578 | L60: -81,778 | M60: -10,477 | N60: -4,267 | O60: -14,135 | P60: -13,873 | Q60: -1,633 | R60: -9,387 | S60: -2,971 | T60: 1,140 | U60: -233,049 | V60: -362,703
D62: DIFERENCIA ENERO - DICIEMBRE 2020 vs 2019 (PORCENTAJES)
D63: MES | E63: IMPORTACIÓN | I63: EXPORTACIÓN | M63: TRÁNSITO | Q63: CABOTAJE | U63: TOTAL BOXES | V63: TOTAL TEUS
E64: 20 pies | G64: 40 pies | I64: 20 pies | K64: 40 pies | M64: 20 pies | O64: 40 pies | Q64: 20 pies | S64: 40 pies
E65: full | F65: empty | G65: full | H65: empty | I65: full | J65: empty | K65: full | L65: empty | M65: full | N65: empty | O65: full | P65: empty | Q65: full | R65: empty | S65: full | T65: empty
D66: ENERO | E66: =E30/E12-1 -> -14.6% | F66: =F30/F12-1 -> 6.2% | G66: -19.8% | H66: 6.6% | I66: -8.6% | J66: -53.4% | K66: -4.1% | L66: -37.7% | M66: -2.6% | N66: -85.8% | O66: -12.6% | P66: -52.2% | Q66: 32.8% | R66: -11.6% | S66: 9.9% | T66: 6.9% | U66: -15.8% | V66: -15.8%
D67: FEBRERO | E67: =E31/E13-1 -> -8.5% | F67: -5.2% | G67: -4.3% | H67: 21.3% | I67: 11.2% | J67: -18.5% | K67: 13.4% | L67: -16.2% | M67: 34.6% | N67: -50.6% | O67: 19.4% | P67: -47.3% | Q67: -24.9% | R67: 34.7% | S67: -12.3% | T67: 86.3% | U67: 2.8% | V67: 3.2%
D68: MARZO | E68: =E32/E14-1 -> -21.5% | F68: 21.1% | G68: -21.6% | H68: 5.8% | I68: -15.9% | J68: -51.4% | K68: -6.8% | L68: -49.7% | M68: 0.9% | N68: -61.8% | O68: -12.2% | P68: -42.8% | Q68: -37.4% | R68: -32.9% | S68: 13.5% | T68: -22.2% | U68: -15.9% | V68: -15.5%
D69: ABRIL | E69: =E33/E15-1 -> -9.8% | F69: 3.0% | G69: -1.5% | H69: -26.1% | I69: -14.1% | J69: -46.9% | K69: -5.3% | L69: -38.8% | M69: -17.7% | N69: -49.1% | O69: -15.0% | P69: 7.4% | Q69: -48.2% | R69: -23.0% | S69: -29.1% | T69: 25.8% | U69: -13.6% | V69: -13.2%
D70: MAYO | E70: =E34/E16-1 -> -7.3% | F70: 7.3% | G70: -14.5% | H70: 15.5% | I70: -0.5% | J70: 5.6% | K70: 5.8% | L70: -6.1% | M70: -25.9% | N70: 17.6% | O70: -20.3% | P70: 0.7% | Q70: -45.1% | R70: -61.0% | S70: -21.5% | T70: -18.4% | U70: -3.2% | V70: -2.6%
D71: JUNIO | E71: =E35/E17-1 -> -24.4% | F71: -47.0% | G71: -26.8% | H71: 15.6% | I71: -33.0% | J71: 31.8% | K71: -13.0% | L71: -43.1% | M71: -39.6% | N71: -34.4% | O71: -35.7% | P71: -63.6% | Q71: -15.6% | R71: -47.3% | S71: -6.3% | T71: -22.3% | U71: -23.0% | V71: -22.0%
D72: ENERO | E72: =E36/E18-1 -> -17.1% | F72: -29.2% | G72: -14.9% | H72: 15.8% | I72: -8.3% | J72: -25.6% | K72: 3.0% | L72: -50.7% | M72: -26.8% | N72: -31.3% | O72: -22.6% | P72: 35.0% | Q72: 34.9% | R72: -54.2% | S72: -16.9% | T72: 81.4% | U72: -10.9% | V72: -9.7%
D73: FEBRERO | E73: =E37/E19-1 -> -16.2% | F73: -42.8% | G73: -17.7% | H73: -9.9% | I73: -14.6% | J73: -29.1% | K73: 6.6% | L73: -42.5% | M73: -29.9% | N73: -18.9% | O73: -25.3% | P73: 15.7% | Q73: 4.0% | R73: -47.7% | S73: 5.0% | T73: -6.6% | U73: -15.2% | V73: -13.9%
D74: MARZO | E74: =E38/E20-1 -> -16.9% | F74: -22.9% | G74: -13.6% | H74: -11.2% | I74: -4.0% | J74: -52.9% | K74: 3.1% | L74: -40.0% | M74: -18.3% | N74: -73.5% | O74: -20.0% | P74: -39.2% | Q74: -2.3% | R74: -32.5% | S74: -12.1% | T74: -52.3% | U74: -15.7% | V74: -15.4%
D75: ABRIL | E75: =E39/E21-1 -> 3.4% | F75: -17.7% | G75: 13.5% | H75: 16.7% | I75: 43.7% | J75: -4.8% | K75: 35.2% | L75: 27.8% | M75: -18.6% | N75: 234.7% | O75: -21.0% | P75: 61.9% | Q75: -34.3% | R75: -33.7% | S75: -29.1% | T75: 51.1% | U75: 17.3% | V75: 19.1%
D76: MAYO | E76: =E40/E22-1 -> -15.0% | F76: 20.4% | G76: 2.4% | H76: 19.5% | I76: -6.1% | J76: -29.0% | K76: 2.5% | L76: 5.0% | M76: -10.1% | N76: -88.6% | O76: -8.2% | P76: 12.2% | Q76: -48.4% | R76: 1.9% | S76: -22.6% | T76: 16.5% | U76: 1.2% | V76: 3.0%
D77: JUNIO | E77: =E41/E23-1 -> -3.0% | F77: -45.3% | G77: 24.9% | H77: -29.2% | I77: -24.3% | J77: -56.6% | K77: 5.2% | L77: -27.6% | M77: -33.7% | N77: -46.3% | O77: -20.4% | P77: 12.1% | Q77: -62.6% | R77: -72.6% | S77: -66.0% | T77: -29.1% | U77: -8.5% | V77: -6.1%
D78: TOTAL | E78: =+E60/E24 -> -12.9% | F78: -14.4% | G78: -8.3% | H78: 2.6% | I78: -8.0% | J78: -29.3% | K78: 2.6% | L78: -28.7% | M78: -17.2% | N78: -45.1% | O78: -17.0% | P78: -18.2% | Q78: -23.4% | R78: -33.0% | S78: -16.9% | T78: 2.6% | U78: -9.0% | V78: -8.1%

Sheet GRÁFICOS
A1: BOXES | B1: 2019 | C1: 2020 | D1: 2021 | E1: 2022 | F1: 2023 | G1: 2024 | H1: 2025
A2: ENERO | B2: 226,057 | C2: 190,427 | D2: 186,841 | E2: 183,456 | F2: ='2023 VS 2022'!T30 -> 164,745 | G2: ='2024 VS 2023'!T30 -> 209,587 | H2: ='ENE - JUN 2025 VS 2024'!T31 -> 232,459
A3: FEBRERO | B3: 212,764 | C3: 218,750 | D3: 200,183 | E3: 185,501 | F3: ='2023 VS 2022'!T31 -> 184,018 | G3: ='2024 VS 2023'!T31 -> 202,850 | H3: ='ENE - JUN 2025 VS 2024'!T32 -> 209,309
A4: MARZO | B4: 234,469 | C4: 197,159 | D4: 228,015 | E4: 209,067 | F4: ='2023 VS 2022'!T32 -> 185,338 | G4: ='2024 VS 2023'!T32 -> 228,561 | H4: ='ENE - JUN 2025 VS 2024'!T33 -> 243,970
A5: ABRIL | B5: 230,239 | C5: 199,036 | D5: 199,651 | E5: 198,363 | F5: ='2023 VS 2022'!T33 -> 171,935 | G5: ='2024 VS 2023'!T33 -> 187,640 | H5: ='ENE - JUN 2025 VS 2024'!T34 -> 226,349
A6: MAYO | B6: 216,551 | C6: 209,619 | D6: 188,498 | E6: 199,339 | F6: ='2023 VS 2022'!T34 -> 194,638 | G6: ='2024 VS 2023'!T34 -> 192,880 | H6: ='ENE - JUN 2025 VS 2024'!T35 -> 217,057
A7: JUNIO | B7: 222,633 | C7: 171,500 | D7: 181,612 | E7: 190,115 | F7: ='2023 VS 2022'!T35 -> 208,507 | G7: ='2024 VS 2023'!T35 -> 187,783 | H7: ='ENE - JUN 2025 VS 2024'!T36 -> 217,323
A8: JULIO | B8: 214,924 | C8: 191,596 | D8: 175,344 | E8: 192,006 | F8: ='2023 VS 2022'!T36 -> 208,839 | G8: ='2024 VS 2023'!T36 -> 245,010 | H8: ='ENE - JUN 2025 VS 2024'!T37 -> 0
A9: AGOSTO | B9: 225,256 | C9: 191,067 | D9: 202,484 | E9: 187,836 | F9: ='2023 VS 2022'!T37 -> 222,592 | G9: ='2024 VS 2023'!T37 -> 211,240 | H9: ='ENE - JUN 2025 VS 2024'!T38 -> 0
A10: SEPTIEMBRE | B10: 209,865 | C10: 176,930 | D10: 189,372 | E10: 185,810 | F10: ='2023 VS 2022'!T38 -> 210,836 | G10: ='2024 VS 2023'!T38 -> 199,018 | H10: ='ENE - JUN 2025 VS 2024'!T39 -> 0
A11: OCTUBRE | B11: 175,624 | C11: 206,055 | D11: 207,369 | E11: 164,163 | F11: ='2023 VS 2022'!T39 -> 198,747 | G11: ='2024 VS 2023'!T39 -> 199,309 | H11: ='ENE - JUN 2025 VS 2024'!T40 -> 0
A12: NOVIEMBRE | B12: 199,529 | C12: 201,889 | D12: 186,169 | E12: 183,470 | F12: ='2023 VS 2022'!T40 -> 212,333 | G12: ='2024 VS 2023'!T40 -> 221,607 | H12: ='ENE - JUN 2025 VS 2024'!T41 -> 0
A13: DICIEMBRE | B13: 224,552 | C13: 205,386 | D13: 214,907 | E13: 193,285 | F13: ='2023 VS 2022'!T41 -> 199,478 | G13: ='2024 VS 2023'!T41 -> 224,695 | H13: ='ENE - JUN 2025 VS 2024'!T42 -> 0
A16: TEUS | B16: 2019 | C16: 2020 | D16: 2021 | E16: 2022 | F16: 2023 | G16: 2024 | H16: 2025
A17: ENERO | B17: 391,270 | C17: 329,558 | D17: 330,241 | E17: 327,861 | F17: ='2023 VS 2022'!U30 -> 297,051 | G17: ='2024 VS 2023'!U30 -> 380,982 | H17: ='ENE - JUN 2025 VS 2024'!U31 -> 429,132
A18: FEBRERO | B18: 368,470 | C18: 380,205 | D18: 353,064 | E18: 334,065 | F18: ='2023 VS 2022'!U31 -> 328,814 | G18: ='2024 VS 2023'!U31 -> 368,305 | H18: ='ENE - JUN 2025 VS 2024'!U32 -> 382,772
A19: MARZO | B19: 411,459 | C19: 347,565 | D19: 405,061 | E19: 381,076 | F19: ='2023 VS 2022'!U32 -> 332,269 | G19: ='2024 VS 2023'!U32 -> 413,859 | H19: ='ENE - JUN 2025 VS 2024'!U33 -> 449,289
A20: ABRIL | B20: 399,703 | C20: 346,764 | D20: 356,517 | E20: 360,812 | F20: ='2023 VS 2022'!U33 -> 308,105 | G20: ='2024 VS 2023'!U33 -> 337,041 | H20: ='ENE - JUN 2025 VS 2024'!U34 -> 416,086
A21: MAYO | B21: 373,429 | C21: 363,687 | D21: 329,412 | E21: 356,894 | F21: ='2023 VS 2022'!U34 -> 348,006 | G21: ='2024 VS 2023'!U34 -> 348,988 | H21: ='ENE - JUN 2025 VS 2024'!U35 -> 394,277
A22: JUNIO | B22: 381,833 | C22: 297,809 | D22: 321,035 | E22: 338,090 | F22: ='2023 VS 2022'!U35 -> 376,702 | G22: ='2024 VS 2023'!U35 -> 338,227 | H22: ='ENE - JUN 2025 VS 2024'!U36 -> 396,352
A23: JULIO | B23: 370,801 | C23: 334,800 | D23: 313,358 | E23: 342,870 | F23: ='2023 VS 2022'!U36 -> 377,158 | G23: ='2024 VS 2023'!U36 -> 450,514 | H23: ='ENE - JUN 2025 VS 2024'!U37 -> 0
A24: AGOSTO | B24: 386,193 | C24: 332,331 | D24: 362,698 | E24: 338,282 | F24: ='2023 VS 2022'!U37 -> 400,781 | G24: ='2024 VS 2023'!U37 -> 390,725 | H24: ='ENE - JUN 2025 VS 2024'!U38 -> 0
A25: SEPTIEMBRE | B25: 363,267 | C25: 307,425 | D25: 336,687 | E25: 333,094 | F25: ='2023 VS 2022'!U38 -> 379,681 | G25: ='2024 VS 2023'!U38 -> 364,327 | H25: ='ENE - JUN 2025 VS 2024'!U39 -> 0
A26: OCTUBRE | B26: 300,847 | C26: 358,221 | D26: 371,478 | E26: 295,163 | F26: ='2023 VS 2022'!U39 -> 357,057 | G26: ='2024 VS 2023'!U39 -> 354,858 | H26: ='ENE - JUN 2025 VS 2024'!U40 -> 0
A27: NOVIEMBRE | B27: 343,315 | C27: 353,538 | D27: 333,050 | E27: 327,315 | F27: ='2023 VS 2022'!U40 -> 380,580 | G27: ='2024 VS 2023'!U40 -> 393,260 | H27: ='ENE - JUN 2025 VS 2024'!U41 -> 0
A28: DICIEMBRE | B28: 390,894 | C28: 366,873 | D28: 386,876 | E28: 346,922 | F28: ='2023 VS 2022'!U41 -> 360,742 | G28: ='2024 VS 2023'!U41 -> 404,107 | H28: ='ENE - JUN 2025 VS 2024'!U42 -> 0
